{"text_format":"1","workbook":"xlsx","n_sheets":6,"sheets":["تقرير استقالة","1.2023","2.2023","3.2023","4.2023","5.2023"],"not_rendered":{"charts":0,"images":0,"macros":1,"external_links":0,"defined_names":22,"comments":0,"pivot_tables":0},"unopened":[],"bounds":{"document_bytes":16777216,"sheet_cells":100000,"rows_first":2000,"rows_last":500,"rows_between":2000,"halvings":0,"cell_chars":16384,"cell_head_chars":4096},"cells_cut":0,"cells_raw":0,"read":"whole","date_system":"1900"}

{"sheet":"تقرير استقالة","index":0,"n_rows":25,"n_cols":9,"rows_kept":25,"cut":false,"hidden":false,"merged":[[7,1,7,2],[7,3,7,5],[9,1,9,2],[9,3,9,5],[9,6,9,7],[24,2,25,3],[24,8,25,9],[0,0,33,0],[0,11,33,11],[1,1,1,2],[1,3,1,10],[11,1,11,2],[11,3,11,10],[3,1,3,2],[3,3,3,5],[3,6,3,7],[3,8,3,10],[5,1,5,2],[5,3,5,5],[5,6,5,7],[5,8,5,10],[21,1,21,10],[13,1,13,2],[13,3,13,10],[7,6,7,7],[7,8,7,10],[9,8,9,10],[17,1,17,2],[17,3,17,5],[17,6,17,7],[17,8,17,10],[19,1,19,2],[19,3,19,10],[15,1,15,2],[15,3,15,5],[15,6,15,7],[15,8,15,10]]}
[]
[null,"الإسم الثلاثي :"]
[]
[null,"القسم الوظيفي :",null,null,null,null,"المُسَمَّى الوظيفي :"]
[]
[null,"الراتب الأولي :",null,null,null,null,"الراتب الحالي :"]
[]
[null,"مجموع زيادة الراتب :",null,null,null,null,"مجموع المكافأت :"]
[]
[null,"مجموع نجم الشهر :",null,null,null,null,"مجموع الغرامات"]
[]
[null,"مجموع المستلم الفعلي :"]
[]
[null,"مجموع المستلم كتابتاً :"]
[]
[null,"التأمينات   :",null,null,null,null,"القرض المتبقي في ذمته :"]
[]
[null,"تاريخ المباشرة بالعمل :",null,null,null,null,"الاستقالة :"]
[]
[null,"ملاحظات الإدارة :"]
[]
[]
[]
[]
[null,null,"توقيع الموظف",null,null,null,null,null,"المحاسب"]

{"sheet":"1.2023","index":1,"n_rows":19,"n_cols":29,"rows_kept":19,"cut":false,"hidden":false,"merged":[]}
[]
[]
[]
["تسلسل","الاسم الثلاثي","القسم","المسمى الوظيفي","الراتب الأساسي","أيام الشهر","عدد أيام العمل","الزيادة","المكافأة","نوع المكافأة","التأمينات","الغرامة","نوع الغرامة","الراتب المستحق","سلفة مقبوضة","دفعة عن القرض","الباقي من القرض","الراتب المستلم الفعلي","نجم الشهر","كارت اتصال","تاركيت اسبوعي","تاركت شهري","عمل إضافي","وزن مخزن","كامل المستحق بدون نقوصات","كامل المستلم الفعلي","المباشرة","الاستقالة","الملاحظات"]
[1,"سامي","الإدارة","امين صندوق",1500000,30,29,25000,10000,"من الإدارة",10000,25000,"مرورية",{"$f":"IFERROR(SUM(خورشيد_علي_عمر[[#This Row],[الراتب الأساسي]]/خورشيد_علي_عمر[[#This Row],[أيام الشهر]]*خورشيد_علي_عمر[[#This Row],[عدد أيام العمل]]+خورشيد_علي_عمر[[#This Row],[الزيادة]]+خورشيد_علي_عمر[[#This Row],[المكافأة]]-خورشيد_علي_عمر[[#This Row],[التأمينات]]-خورشيد_علي_عمر[[#This Row],[الغرامة]]),\"\")","v":1450000},50000,100000,600000,{"$f":"IFERROR(SUM(خورشيد_علي_عمر[[#This Row],[الراتب المستحق]]-خورشيد_علي_عمر[[#This Row],[سلفة مقبوضة]]-خورشيد_علي_عمر[[#This Row],[دفعة عن القرض]]),\"\")","v":1300000},25000,null,null,null,null,null,{"$f":"IFERROR(SUM(خورشيد_علي_عمر[[#This Row],[الراتب الأساسي]]/خورشيد_علي_عمر[[#This Row],[أيام الشهر]]*خورشيد_علي_عمر[[#This Row],[عدد أيام العمل]]+خورشيد_علي_عمر[[#This Row],[الزيادة]]+خورشيد_علي_عمر[[#This Row],[المكافأة]]+خورشيد_علي_عمر[[#This Row],[نجم الشهر]]+خورشيد_علي_عمر[[#This Row],[كارت اتصال]]+خورشيد_علي_عمر[[#This Row],[تاركت شهري]]+خورشيد_علي_عمر[[#This Row],[عمل إضافي]]+خورشيد_علي_عمر[[#This Row],[وزن مخزن]]),\"\")","v":1510000},{"$f":"IFERROR(SUM(خورشيد_علي_عمر[[#This Row],[كامل المستحق بدون نقوصات]]-خورشيد_علي_عمر[[#This Row],[التأمينات]]-خورشيد_علي_عمر[[#This Row],[الغرامة]]-خورشيد_علي_عمر[[#This Row],[سلفة مقبوضة]]-خورشيد_علي_عمر[[#This Row],[دفعة عن القرض]]),\"\")","v":1325000},"2023-01-01","2024-01-01","لا يوجد"]
[2,"كريم","الإدارة","مدير",2000000,30,30,100000,50000,"المدير",25000,5000,"مرورية",{"$f":"IFERROR(SUM(خورشيد_علي_عمر[[#This Row],[الراتب الأساسي]]/خورشيد_علي_عمر[[#This Row],[أيام الشهر]]*خورشيد_علي_عمر[[#This Row],[عدد أيام العمل]]+خورشيد_علي_عمر[[#This Row],[الزيادة]]+خورشيد_علي_عمر[[#This Row],[المكافأة]]-خورشيد_علي_عمر[[#This Row],[التأمينات]]-خورشيد_علي_عمر[[#This Row],[الغرامة]]),\"\")","v":2120000},25000,50000,200000,{"$f":"IFERROR(SUM(خورشيد_علي_عمر[[#This Row],[الراتب المستحق]]-خورشيد_علي_عمر[[#This Row],[سلفة مقبوضة]]-خورشيد_علي_عمر[[#This Row],[دفعة عن القرض]]),\"\")","v":2045000},null,null,null,null,null,null,{"$f":"IFERROR(SUM(خورشيد_علي_عمر[[#This Row],[الراتب الأساسي]]/خورشيد_علي_عمر[[#This Row],[أيام الشهر]]*خورشيد_علي_عمر[[#This Row],[عدد أيام العمل]]+خورشيد_علي_عمر[[#This Row],[الزيادة]]+خورشيد_علي_عمر[[#This Row],[المكافأة]]+خورشيد_علي_عمر[[#This Row],[نجم الشهر]]+خورشيد_علي_عمر[[#This Row],[كارت اتصال]]+خورشيد_علي_عمر[[#This Row],[تاركت شهري]]+خورشيد_علي_عمر[[#This Row],[عمل إضافي]]+خورشيد_علي_عمر[[#This Row],[وزن مخزن]]),\"\")","v":2150000},{"$f":"IFERROR(SUM(خورشيد_علي_عمر[[#This Row],[كامل المستحق بدون نقوصات]]-خورشيد_علي_عمر[[#This Row],[التأمينات]]-خورشيد_علي_عمر[[#This Row],[الغرامة]]-خورشيد_علي_عمر[[#This Row],[سلفة مقبوضة]]-خورشيد_علي_عمر[[#This Row],[دفعة عن القرض]]),\"\")","v":2045000},"2022-01-01","2025-01-01"]
[3,null,null,null,null,null,null,null,null,null,null,null,null,{"$f":"IFERROR(SUM(خورشيد_علي_عمر[[#This Row],[الراتب الأساسي]]/خورشيد_علي_عمر[[#This Row],[أيام الشهر]]*خورشيد_علي_عمر[[#This Row],[عدد أيام العمل]]+خورشيد_علي_عمر[[#This Row],[الزيادة]]+خورشيد_علي_عمر[[#This Row],[المكافأة]]-خورشيد_علي_عمر[[#This Row],[التأمينات]]-خورشيد_علي_عمر[[#This Row],[الغرامة]]),\"\")","v":""},null,null,null,{"$f":"IFERROR(SUM(خورشيد_علي_عمر[[#This Row],[الراتب المستحق]]-خورشيد_علي_عمر[[#This Row],[سلفة مقبوضة]]-خورشيد_علي_عمر[[#This Row],[دفعة عن القرض]]),\"\")","v":""},null,null,null,null,null,null,{"$f":"IFERROR(SUM(خورشيد_علي_عمر[[#This Row],[الراتب الأساسي]]/خورشيد_علي_عمر[[#This Row],[أيام الشهر]]*خورشيد_علي_عمر[[#This Row],[عدد أيام العمل]]+خورشيد_علي_عمر[[#This Row],[الزيادة]]+خورشيد_علي_عمر[[#This Row],[المكافأة]]+خورشيد_علي_عمر[[#This Row],[نجم الشهر]]+خورشيد_علي_عمر[[#This Row],[كارت اتصال]]+خورشيد_علي_عمر[[#This Row],[تاركت شهري]]+خورشيد_علي_عمر[[#This Row],[عمل إضافي]]+خورشيد_علي_عمر[[#This Row],[وزن مخزن]]),\"\")","v":""},{"$f":"IFERROR(SUM(خورشيد_علي_عمر[[#This Row],[كامل المستحق بدون نقوصات]]-خورشيد_علي_عمر[[#This Row],[التأمينات]]-خورشيد_علي_عمر[[#This Row],[الغرامة]]-خورشيد_علي_عمر[[#This Row],[سلفة مقبوضة]]-خورشيد_علي_عمر[[#This Row],[دفعة عن القرض]]),\"\")","v":""}]
[4,null,null,null,null,null,null,null,null,null,null,null,null,{"$f":"IFERROR(SUM(خورشيد_علي_عمر[[#This Row],[الراتب الأساسي]]/خورشيد_علي_عمر[[#This Row],[أيام الشهر]]*خورشيد_علي_عمر[[#This Row],[عدد أيام العمل]]+خورشيد_علي_عمر[[#This Row],[الزيادة]]+خورشيد_علي_عمر[[#This Row],[المكافأة]]-خورشيد_علي_عمر[[#This Row],[التأمينات]]-خورشيد_علي_عمر[[#This Row],[الغرامة]]),\"\")","v":""},null,null,null,{"$f":"IFERROR(SUM(خورشيد_علي_عمر[[#This Row],[الراتب المستحق]]-خورشيد_علي_عمر[[#This Row],[سلفة مقبوضة]]-خورشيد_علي_عمر[[#This Row],[دفعة عن القرض]]),\"\")","v":""},null,null,null,null,null,null,{"$f":"IFERROR(SUM(خورشيد_علي_عمر[[#This Row],[الراتب الأساسي]]/خورشيد_علي_عمر[[#This Row],[أيام الشهر]]*خورشيد_علي_عمر[[#This Row],[عدد أيام العمل]]+خورشيد_علي_عمر[[#This Row],[الزيادة]]+خورشيد_علي_عمر[[#This Row],[المكافأة]]+خورشيد_علي_عمر[[#This Row],[نجم الشهر]]+خورشيد_علي_عمر[[#This Row],[كارت اتصال]]+خورشيد_علي_عمر[[#This Row],[تاركت شهري]]+خورشيد_علي_عمر[[#This Row],[عمل إضافي]]+خورشيد_علي_عمر[[#This Row],[وزن مخزن]]),\"\")","v":""},{"$f":"IFERROR(SUM(خورشيد_علي_عمر[[#This Row],[كامل المستحق بدون نقوصات]]-خورشيد_علي_عمر[[#This Row],[التأمينات]]-خورشيد_علي_عمر[[#This Row],[الغرامة]]-خورشيد_علي_عمر[[#This Row],[سلفة مقبوضة]]-خورشيد_علي_عمر[[#This Row],[دفعة عن القرض]]),\"\")","v":""}]
[5,null,null,null,null,null,null,null,null,null,null,null,null,{"$f":"IFERROR(SUM(خورشيد_علي_عمر[[#This Row],[الراتب الأساسي]]/خورشيد_علي_عمر[[#This Row],[أيام الشهر]]*خورشيد_علي_عمر[[#This Row],[عدد أيام العمل]]+خورشيد_علي_عمر[[#This Row],[الزيادة]]+خورشيد_علي_عمر[[#This Row],[المكافأة]]-خورشيد_علي_عمر[[#This Row],[التأمينات]]-خورشيد_علي_عمر[[#This Row],[الغرامة]]),\"\")","v":""},null,null,null,{"$f":"IFERROR(SUM(خورشيد_علي_عمر[[#This Row],[الراتب المستحق]]-خورشيد_علي_عمر[[#This Row],[سلفة مقبوضة]]-خورشيد_علي_عمر[[#This Row],[دفعة عن القرض]]),\"\")","v":""},null,null,null,null,null,null,{"$f":"IFERROR(SUM(خورشيد_علي_عمر[[#This Row],[الراتب الأساسي]]/خورشيد_علي_عمر[[#This Row],[أيام الشهر]]*خورشيد_علي_عمر[[#This Row],[عدد أيام العمل]]+خورشيد_علي_عمر[[#This Row],[الزيادة]]+خورشيد_علي_عمر[[#This Row],[المكافأة]]+خورشيد_علي_عمر[[#This Row],[نجم الشهر]]+خورشيد_علي_عمر[[#This Row],[كارت اتصال]]+خورشيد_علي_عمر[[#This Row],[تاركت شهري]]+خورشيد_علي_عمر[[#This Row],[عمل إضافي]]+خورشيد_علي_عمر[[#This Row],[وزن مخزن]]),\"\")","v":""},{"$f":"IFERROR(SUM(خورشيد_علي_عمر[[#This Row],[كامل المستحق بدون نقوصات]]-خورشيد_علي_عمر[[#This Row],[التأمينات]]-خورشيد_علي_عمر[[#This Row],[الغرامة]]-خورشيد_علي_عمر[[#This Row],[سلفة مقبوضة]]-خورشيد_علي_عمر[[#This Row],[دفعة عن القرض]]),\"\")","v":""}]
[6,null,null,null,null,null,null,null,null,null,null,null,null,{"$f":"IFERROR(SUM(خورشيد_علي_عمر[[#This Row],[الراتب الأساسي]]/خورشيد_علي_عمر[[#This Row],[أيام الشهر]]*خورشيد_علي_عمر[[#This Row],[عدد أيام العمل]]+خورشيد_علي_عمر[[#This Row],[الزيادة]]+خورشيد_علي_عمر[[#This Row],[المكافأة]]-خورشيد_علي_عمر[[#This Row],[التأمينات]]-خورشيد_علي_عمر[[#This Row],[الغرامة]]),\"\")","v":""},null,null,null,{"$f":"IFERROR(SUM(خورشيد_علي_عمر[[#This Row],[الراتب المستحق]]-خورشيد_علي_عمر[[#This Row],[سلفة مقبوضة]]-خورشيد_علي_عمر[[#This Row],[دفعة عن القرض]]),\"\")","v":""},null,null,null,null,null,null,{"$f":"IFERROR(SUM(خورشيد_علي_عمر[[#This Row],[الراتب الأساسي]]/خورشيد_علي_عمر[[#This Row],[أيام الشهر]]*خورشيد_علي_عمر[[#This Row],[عدد أيام العمل]]+خورشيد_علي_عمر[[#This Row],[الزيادة]]+خورشيد_علي_عمر[[#This Row],[المكافأة]]+خورشيد_علي_عمر[[#This Row],[نجم الشهر]]+خورشيد_علي_عمر[[#This Row],[كارت اتصال]]+خورشيد_علي_عمر[[#This Row],[تاركت شهري]]+خورشيد_علي_عمر[[#This Row],[عمل إضافي]]+خورشيد_علي_عمر[[#This Row],[وزن مخزن]]),\"\")","v":""},{"$f":"IFERROR(SUM(خورشيد_علي_عمر[[#This Row],[كامل المستحق بدون نقوصات]]-خورشيد_علي_عمر[[#This Row],[التأمينات]]-خورشيد_علي_عمر[[#This Row],[الغرامة]]-خورشيد_علي_عمر[[#This Row],[سلفة مقبوضة]]-خورشيد_علي_عمر[[#This Row],[دفعة عن القرض]]),\"\")","v":""}]
[7,null,null,null,null,null,null,null,null,null,null,null,null,{"$f":"IFERROR(SUM(خورشيد_علي_عمر[[#This Row],[الراتب الأساسي]]/خورشيد_علي_عمر[[#This Row],[أيام الشهر]]*خورشيد_علي_عمر[[#This Row],[عدد أيام العمل]]+خورشيد_علي_عمر[[#This Row],[الزيادة]]+خورشيد_علي_عمر[[#This Row],[المكافأة]]-خورشيد_علي_عمر[[#This Row],[التأمينات]]-خورشيد_علي_عمر[[#This Row],[الغرامة]]),\"\")","v":""},null,null,null,{"$f":"IFERROR(SUM(خورشيد_علي_عمر[[#This Row],[الراتب المستحق]]-خورشيد_علي_عمر[[#This Row],[سلفة مقبوضة]]-خورشيد_علي_عمر[[#This Row],[دفعة عن القرض]]),\"\")","v":""},null,null,null,null,null,null,{"$f":"IFERROR(SUM(خورشيد_علي_عمر[[#This Row],[الراتب الأساسي]]/خورشيد_علي_عمر[[#This Row],[أيام الشهر]]*خورشيد_علي_عمر[[#This Row],[عدد أيام العمل]]+خورشيد_علي_عمر[[#This Row],[الزيادة]]+خورشيد_علي_عمر[[#This Row],[المكافأة]]+خورشيد_علي_عمر[[#This Row],[نجم الشهر]]+خورشيد_علي_عمر[[#This Row],[كارت اتصال]]+خورشيد_علي_عمر[[#This Row],[تاركت شهري]]+خورشيد_علي_عمر[[#This Row],[عمل إضافي]]+خورشيد_علي_عمر[[#This Row],[وزن مخزن]]),\"\")","v":""},{"$f":"IFERROR(SUM(خورشيد_علي_عمر[[#This Row],[كامل المستحق بدون نقوصات]]-خورشيد_علي_عمر[[#This Row],[التأمينات]]-خورشيد_علي_عمر[[#This Row],[الغرامة]]-خورشيد_علي_عمر[[#This Row],[سلفة مقبوضة]]-خورشيد_علي_عمر[[#This Row],[دفعة عن القرض]]),\"\")","v":""}]
[8,null,null,null,null,null,null,null,null,null,null,null,null,{"$f":"IFERROR(SUM(خورشيد_علي_عمر[[#This Row],[الراتب الأساسي]]/خورشيد_علي_عمر[[#This Row],[أيام الشهر]]*خورشيد_علي_عمر[[#This Row],[عدد أيام العمل]]+خورشيد_علي_عمر[[#This Row],[الزيادة]]+خورشيد_علي_عمر[[#This Row],[المكافأة]]-خورشيد_علي_عمر[[#This Row],[التأمينات]]-خورشيد_علي_عمر[[#This Row],[الغرامة]]),\"\")","v":""},null,null,null,{"$f":"IFERROR(SUM(خورشيد_علي_عمر[[#This Row],[الراتب المستحق]]-خورشيد_علي_عمر[[#This Row],[سلفة مقبوضة]]-خورشيد_علي_عمر[[#This Row],[دفعة عن القرض]]),\"\")","v":""},null,null,null,null,null,null,{"$f":"IFERROR(SUM(خورشيد_علي_عمر[[#This Row],[الراتب الأساسي]]/خورشيد_علي_عمر[[#This Row],[أيام الشهر]]*خورشيد_علي_عمر[[#This Row],[عدد أيام العمل]]+خورشيد_علي_عمر[[#This Row],[الزيادة]]+خورشيد_علي_عمر[[#This Row],[المكافأة]]+خورشيد_علي_عمر[[#This Row],[نجم الشهر]]+خورشيد_علي_عمر[[#This Row],[كارت اتصال]]+خورشيد_علي_عمر[[#This Row],[تاركت شهري]]+خورشيد_علي_عمر[[#This Row],[عمل إضافي]]+خورشيد_علي_عمر[[#This Row],[وزن مخزن]]),\"\")","v":""},{"$f":"IFERROR(SUM(خورشيد_علي_عمر[[#This Row],[كامل المستحق بدون نقوصات]]-خورشيد_علي_عمر[[#This Row],[التأمينات]]-خورشيد_علي_عمر[[#This Row],[الغرامة]]-خورشيد_علي_عمر[[#This Row],[سلفة مقبوضة]]-خورشيد_علي_عمر[[#This Row],[دفعة عن القرض]]),\"\")","v":""}]
[9,null,null,null,null,null,null,null,null,null,null,null,null,{"$f":"IFERROR(SUM(خورشيد_علي_عمر[[#This Row],[الراتب الأساسي]]/خورشيد_علي_عمر[[#This Row],[أيام الشهر]]*خورشيد_علي_عمر[[#This Row],[عدد أيام العمل]]+خورشيد_علي_عمر[[#This Row],[الزيادة]]+خورشيد_علي_عمر[[#This Row],[المكافأة]]-خورشيد_علي_عمر[[#This Row],[التأمينات]]-خورشيد_علي_عمر[[#This Row],[الغرامة]]),\"\")","v":""},null,null,null,{"$f":"IFERROR(SUM(خورشيد_علي_عمر[[#This Row],[الراتب المستحق]]-خورشيد_علي_عمر[[#This Row],[سلفة مقبوضة]]-خورشيد_علي_عمر[[#This Row],[دفعة عن القرض]]),\"\")","v":""},null,null,null,null,null,null,{"$f":"IFERROR(SUM(خورشيد_علي_عمر[[#This Row],[الراتب الأساسي]]/خورشيد_علي_عمر[[#This Row],[أيام الشهر]]*خورشيد_علي_عمر[[#This Row],[عدد أيام العمل]]+خورشيد_علي_عمر[[#This Row],[الزيادة]]+خورشيد_علي_عمر[[#This Row],[المكافأة]]+خورشيد_علي_عمر[[#This Row],[نجم الشهر]]+خورشيد_علي_عمر[[#This Row],[كارت اتصال]]+خورشيد_علي_عمر[[#This Row],[تاركت شهري]]+خورشيد_علي_عمر[[#This Row],[عمل إضافي]]+خورشيد_علي_عمر[[#This Row],[وزن مخزن]]),\"\")","v":""},{"$f":"IFERROR(SUM(خورشيد_علي_عمر[[#This Row],[كامل المستحق بدون نقوصات]]-خورشيد_علي_عمر[[#This Row],[التأمينات]]-خورشيد_علي_عمر[[#This Row],[الغرامة]]-خورشيد_علي_عمر[[#This Row],[سلفة مقبوضة]]-خورشيد_علي_عمر[[#This Row],[دفعة عن القرض]]),\"\")","v":""}]
[10,null,null,null,null,null,null,null,null,null,null,null,null,{"$f":"IFERROR(SUM(خورشيد_علي_عمر[[#This Row],[الراتب الأساسي]]/خورشيد_علي_عمر[[#This Row],[أيام الشهر]]*خورشيد_علي_عمر[[#This Row],[عدد أيام العمل]]+خورشيد_علي_عمر[[#This Row],[الزيادة]]+خورشيد_علي_عمر[[#This Row],[المكافأة]]-خورشيد_علي_عمر[[#This Row],[التأمينات]]-خورشيد_علي_عمر[[#This Row],[الغرامة]]),\"\")","v":""},null,null,null,{"$f":"IFERROR(SUM(خورشيد_علي_عمر[[#This Row],[الراتب المستحق]]-خورشيد_علي_عمر[[#This Row],[سلفة مقبوضة]]-خورشيد_علي_عمر[[#This Row],[دفعة عن القرض]]),\"\")","v":""},null,null,null,null,null,null,{"$f":"IFERROR(SUM(خورشيد_علي_عمر[[#This Row],[الراتب الأساسي]]/خورشيد_علي_عمر[[#This Row],[أيام الشهر]]*خورشيد_علي_عمر[[#This Row],[عدد أيام العمل]]+خورشيد_علي_عمر[[#This Row],[الزيادة]]+خورشيد_علي_عمر[[#This Row],[المكافأة]]+خورشيد_علي_عمر[[#This Row],[نجم الشهر]]+خورشيد_علي_عمر[[#This Row],[كارت اتصال]]+خورشيد_علي_عمر[[#This Row],[تاركت شهري]]+خورشيد_علي_عمر[[#This Row],[عمل إضافي]]+خورشيد_علي_عمر[[#This Row],[وزن مخزن]]),\"\")","v":""},{"$f":"IFERROR(SUM(خورشيد_علي_عمر[[#This Row],[كامل المستحق بدون نقوصات]]-خورشيد_علي_عمر[[#This Row],[التأمينات]]-خورشيد_علي_عمر[[#This Row],[الغرامة]]-خورشيد_علي_عمر[[#This Row],[سلفة مقبوضة]]-خورشيد_علي_عمر[[#This Row],[دفعة عن القرض]]),\"\")","v":""}]
[11,null,null,null,null,null,null,null,null,null,null,null,null,{"$f":"IFERROR(SUM(خورشيد_علي_عمر[[#This Row],[الراتب الأساسي]]/خورشيد_علي_عمر[[#This Row],[أيام الشهر]]*خورشيد_علي_عمر[[#This Row],[عدد أيام العمل]]+خورشيد_علي_عمر[[#This Row],[الزيادة]]+خورشيد_علي_عمر[[#This Row],[المكافأة]]-خورشيد_علي_عمر[[#This Row],[التأمينات]]-خورشيد_علي_عمر[[#This Row],[الغرامة]]),\"\")","v":""},null,null,null,{"$f":"IFERROR(SUM(خورشيد_علي_عمر[[#This Row],[الراتب المستحق]]-خورشيد_علي_عمر[[#This Row],[سلفة مقبوضة]]-خورشيد_علي_عمر[[#This Row],[دفعة عن القرض]]),\"\")","v":""},null,null,null,null,null,null,{"$f":"IFERROR(SUM(خورشيد_علي_عمر[[#This Row],[الراتب الأساسي]]/خورشيد_علي_عمر[[#This Row],[أيام الشهر]]*خورشيد_علي_عمر[[#This Row],[عدد أيام العمل]]+خورشيد_علي_عمر[[#This Row],[الزيادة]]+خورشيد_علي_عمر[[#This Row],[المكافأة]]+خورشيد_علي_عمر[[#This Row],[نجم الشهر]]+خورشيد_علي_عمر[[#This Row],[كارت اتصال]]+خورشيد_علي_عمر[[#This Row],[تاركت شهري]]+خورشيد_علي_عمر[[#This Row],[عمل إضافي]]+خورشيد_علي_عمر[[#This Row],[وزن مخزن]]),\"\")","v":""},{"$f":"IFERROR(SUM(خورشيد_علي_عمر[[#This Row],[كامل المستحق بدون نقوصات]]-خورشيد_علي_عمر[[#This Row],[التأمينات]]-خورشيد_علي_عمر[[#This Row],[الغرامة]]-خورشيد_علي_عمر[[#This Row],[سلفة مقبوضة]]-خورشيد_علي_عمر[[#This Row],[دفعة عن القرض]]),\"\")","v":""}]
[12,null,null,null,null,null,null,null,null,null,null,null,null,{"$f":"IFERROR(SUM(خورشيد_علي_عمر[[#This Row],[الراتب الأساسي]]/خورشيد_علي_عمر[[#This Row],[أيام الشهر]]*خورشيد_علي_عمر[[#This Row],[عدد أيام العمل]]+خورشيد_علي_عمر[[#This Row],[الزيادة]]+خورشيد_علي_عمر[[#This Row],[المكافأة]]-خورشيد_علي_عمر[[#This Row],[التأمينات]]-خورشيد_علي_عمر[[#This Row],[الغرامة]]),\"\")","v":""},null,null,null,{"$f":"IFERROR(SUM(خورشيد_علي_عمر[[#This Row],[الراتب المستحق]]-خورشيد_علي_عمر[[#This Row],[سلفة مقبوضة]]-خورشيد_علي_عمر[[#This Row],[دفعة عن القرض]]),\"\")","v":""},null,null,null,null,null,null,{"$f":"IFERROR(SUM(خورشيد_علي_عمر[[#This Row],[الراتب الأساسي]]/خورشيد_علي_عمر[[#This Row],[أيام الشهر]]*خورشيد_علي_عمر[[#This Row],[عدد أيام العمل]]+خورشيد_علي_عمر[[#This Row],[الزيادة]]+خورشيد_علي_عمر[[#This Row],[المكافأة]]+خورشيد_علي_عمر[[#This Row],[نجم الشهر]]+خورشيد_علي_عمر[[#This Row],[كارت اتصال]]+خورشيد_علي_عمر[[#This Row],[تاركت شهري]]+خورشيد_علي_عمر[[#This Row],[عمل إضافي]]+خورشيد_علي_عمر[[#This Row],[وزن مخزن]]),\"\")","v":""},{"$f":"IFERROR(SUM(خورشيد_علي_عمر[[#This Row],[كامل المستحق بدون نقوصات]]-خورشيد_علي_عمر[[#This Row],[التأمينات]]-خورشيد_علي_عمر[[#This Row],[الغرامة]]-خورشيد_علي_عمر[[#This Row],[سلفة مقبوضة]]-خورشيد_علي_عمر[[#This Row],[دفعة عن القرض]]),\"\")","v":""}]
[13,null,null,null,null,null,null,null,null,null,null,null,null,{"$f":"IFERROR(SUM(خورشيد_علي_عمر[[#This Row],[الراتب الأساسي]]/خورشيد_علي_عمر[[#This Row],[أيام الشهر]]*خورشيد_علي_عمر[[#This Row],[عدد أيام العمل]]+خورشيد_علي_عمر[[#This Row],[الزيادة]]+خورشيد_علي_عمر[[#This Row],[المكافأة]]-خورشيد_علي_عمر[[#This Row],[التأمينات]]-خورشيد_علي_عمر[[#This Row],[الغرامة]]),\"\")","v":""},null,null,null,{"$f":"IFERROR(SUM(خورشيد_علي_عمر[[#This Row],[الراتب المستحق]]-خورشيد_علي_عمر[[#This Row],[سلفة مقبوضة]]-خورشيد_علي_عمر[[#This Row],[دفعة عن القرض]]),\"\")","v":""},null,null,null,null,null,null,{"$f":"IFERROR(SUM(خورشيد_علي_عمر[[#This Row],[الراتب الأساسي]]/خورشيد_علي_عمر[[#This Row],[أيام الشهر]]*خورشيد_علي_عمر[[#This Row],[عدد أيام العمل]]+خورشيد_علي_عمر[[#This Row],[الزيادة]]+خورشيد_علي_عمر[[#This Row],[المكافأة]]+خورشيد_علي_عمر[[#This Row],[نجم الشهر]]+خورشيد_علي_عمر[[#This Row],[كارت اتصال]]+خورشيد_علي_عمر[[#This Row],[تاركت شهري]]+خورشيد_علي_عمر[[#This Row],[عمل إضافي]]+خورشيد_علي_عمر[[#This Row],[وزن مخزن]]),\"\")","v":""},{"$f":"IFERROR(SUM(خورشيد_علي_عمر[[#This Row],[كامل المستحق بدون نقوصات]]-خورشيد_علي_عمر[[#This Row],[التأمينات]]-خورشيد_علي_عمر[[#This Row],[الغرامة]]-خورشيد_علي_عمر[[#This Row],[سلفة مقبوضة]]-خورشيد_علي_عمر[[#This Row],[دفعة عن القرض]]),\"\")","v":""}]
[1000,null,null,null,null,null,null,null,null,null,null,null,null,{"$f":"IFERROR(SUM(خورشيد_علي_عمر[[#This Row],[الراتب الأساسي]]/خورشيد_علي_عمر[[#This Row],[أيام الشهر]]*خورشيد_علي_عمر[[#This Row],[عدد أيام العمل]]+خورشيد_علي_عمر[[#This Row],[الزيادة]]+خورشيد_علي_عمر[[#This Row],[المكافأة]]-خورشيد_علي_عمر[[#This Row],[التأمينات]]-خورشيد_علي_عمر[[#This Row],[الغرامة]]),\"\")","v":""},null,null,null,{"$f":"IFERROR(SUM(خورشيد_علي_عمر[[#This Row],[الراتب المستحق]]-خورشيد_علي_عمر[[#This Row],[سلفة مقبوضة]]-خورشيد_علي_عمر[[#This Row],[دفعة عن القرض]]),\"\")","v":""},null,null,null,null,null,null,{"$f":"IFERROR(SUM(خورشيد_علي_عمر[[#This Row],[الراتب الأساسي]]/خورشيد_علي_عمر[[#This Row],[أيام الشهر]]*خورشيد_علي_عمر[[#This Row],[عدد أيام العمل]]+خورشيد_علي_عمر[[#This Row],[الزيادة]]+خورشيد_علي_عمر[[#This Row],[المكافأة]]+خورشيد_علي_عمر[[#This Row],[نجم الشهر]]+خورشيد_علي_عمر[[#This Row],[كارت اتصال]]+خورشيد_علي_عمر[[#This Row],[تاركت شهري]]+خورشيد_علي_عمر[[#This Row],[عمل إضافي]]+خورشيد_علي_عمر[[#This Row],[وزن مخزن]]),\"\")","v":""},{"$f":"IFERROR(SUM(خورشيد_علي_عمر[[#This Row],[كامل المستحق بدون نقوصات]]-خورشيد_علي_عمر[[#This Row],[التأمينات]]-خورشيد_علي_عمر[[#This Row],[الغرامة]]-خورشيد_علي_عمر[[#This Row],[سلفة مقبوضة]]-خورشيد_علي_عمر[[#This Row],[دفعة عن القرض]]),\"\")","v":""}]
[null,null,null,null,{"$f":"SUBTOTAL(109,خورشيد_علي_عمر[الراتب الأساسي])","v":3500000},null,null,{"$f":"SUBTOTAL(109,H5:H18)","v":125000},{"$f":"SUBTOTAL(109,I5:I18)","v":60000},null,{"$f":"SUBTOTAL(109,K5:K18)","v":35000},{"$f":"SUBTOTAL(109,L5:L18)","v":30000},null,{"$f":"SUBTOTAL(109,N5:N18)","v":3570000},75000,150000,800000,3345000,25000,0,0,0,{"$f":"SUBTOTAL(109,خورشيد_علي_عمر[عمل إضافي])","v":0},{"$f":"SUBTOTAL(109,خورشيد_علي_عمر[وزن مخزن])","v":0},null,{"$f":"SUBTOTAL(109,خورشيد_علي_عمر[كامل المستلم الفعلي])","v":3370000}]

{"sheet":"2.2023","index":2,"n_rows":19,"n_cols":29,"rows_kept":19,"cut":false,"hidden":false,"merged":[]}
[]
[]
[]
["تسلسل","الاسم الثلاثي","القسم","المسمى الوظيفي","الراتب الأساسي","أيام الشهر","عدد أيام العمل","الزيادة","المكافأة","نوع المكافأة","التأمينات","الغرامة","نوع الغرامة","الراتب المستحق","سلفة مقبوضة","دفعة عن القرض","الباقي من القرض","الراتب المستلم الفعلي","نجم الشهر","كارت اتصال","تاركيت اسبوعي","تاركت شهري","عمل إضافي","وزن مخزن","كامل المستحق بدون نقوصات","كامل المستلم الفعلي","المباشرة","الاستقالة","الملاحظات"]
[1,"سامي","الإدارة","امين صندوق",1500000,30,29,25000,10000,"من الإدارة",10000,25000,"مرورية",{"$f":"IFERROR(SUM(خورشيد_علي_عمر3[[#This Row],[الراتب الأساسي]]/خورشيد_علي_عمر3[[#This Row],[أيام الشهر]]*خورشيد_علي_عمر3[[#This Row],[عدد أيام العمل]]+خورشيد_علي_عمر3[[#This Row],[الزيادة]]+خورشيد_علي_عمر3[[#This Row],[المكافأة]]-خورشيد_علي_عمر3[[#This Row],[التأمينات]]-خورشيد_علي_عمر3[[#This Row],[الغرامة]]),\"\")","v":1450000},50000,100000,600000,{"$f":"IFERROR(SUM(خورشيد_علي_عمر3[[#This Row],[الراتب المستحق]]-خورشيد_علي_عمر3[[#This Row],[سلفة مقبوضة]]-خورشيد_علي_عمر3[[#This Row],[دفعة عن القرض]]),\"\")","v":1300000},25000,null,null,null,null,null,{"$f":"IFERROR(SUM(خورشيد_علي_عمر3[[#This Row],[الراتب الأساسي]]/خورشيد_علي_عمر3[[#This Row],[أيام الشهر]]*خورشيد_علي_عمر3[[#This Row],[عدد أيام العمل]]+خورشيد_علي_عمر3[[#This Row],[الزيادة]]+خورشيد_علي_عمر3[[#This Row],[المكافأة]]+خورشيد_علي_عمر3[[#This Row],[نجم الشهر]]+خورشيد_علي_عمر3[[#This Row],[كارت اتصال]]+خورشيد_علي_عمر3[[#This Row],[تاركت شهري]]+خورشيد_علي_عمر3[[#This Row],[عمل إضافي]]+خورشيد_علي_عمر3[[#This Row],[وزن مخزن]]),\"\")","v":1510000},{"$f":"IFERROR(SUM(خورشيد_علي_عمر3[[#This Row],[كامل المستحق بدون نقوصات]]-خورشيد_علي_عمر3[[#This Row],[التأمينات]]-خورشيد_علي_عمر3[[#This Row],[الغرامة]]-خورشيد_علي_عمر3[[#This Row],[سلفة مقبوضة]]-خورشيد_علي_عمر3[[#This Row],[دفعة عن القرض]]),\"\")","v":1325000},"2023-01-01","2024-01-01","لا يوجد"]
[2,"كريم","الإدارة","مدير",2000000,30,30,100000,50000,"المدير",25000,5000,"مرورية",{"$f":"IFERROR(SUM(خورشيد_علي_عمر3[[#This Row],[الراتب الأساسي]]/خورشيد_علي_عمر3[[#This Row],[أيام الشهر]]*خورشيد_علي_عمر3[[#This Row],[عدد أيام العمل]]+خورشيد_علي_عمر3[[#This Row],[الزيادة]]+خورشيد_علي_عمر3[[#This Row],[المكافأة]]-خورشيد_علي_عمر3[[#This Row],[التأمينات]]-خورشيد_علي_عمر3[[#This Row],[الغرامة]]),\"\")","v":2120000},25000,50000,200000,{"$f":"IFERROR(SUM(خورشيد_علي_عمر3[[#This Row],[الراتب المستحق]]-خورشيد_علي_عمر3[[#This Row],[سلفة مقبوضة]]-خورشيد_علي_عمر3[[#This Row],[دفعة عن القرض]]),\"\")","v":2045000},null,null,null,null,null,null,{"$f":"IFERROR(SUM(خورشيد_علي_عمر3[[#This Row],[الراتب الأساسي]]/خورشيد_علي_عمر3[[#This Row],[أيام الشهر]]*خورشيد_علي_عمر3[[#This Row],[عدد أيام العمل]]+خورشيد_علي_عمر3[[#This Row],[الزيادة]]+خورشيد_علي_عمر3[[#This Row],[المكافأة]]+خورشيد_علي_عمر3[[#This Row],[نجم الشهر]]+خورشيد_علي_عمر3[[#This Row],[كارت اتصال]]+خورشيد_علي_عمر3[[#This Row],[تاركت شهري]]+خورشيد_علي_عمر3[[#This Row],[عمل إضافي]]+خورشيد_علي_عمر3[[#This Row],[وزن مخزن]]),\"\")","v":2150000},{"$f":"IFERROR(SUM(خورشيد_علي_عمر3[[#This Row],[كامل المستحق بدون نقوصات]]-خورشيد_علي_عمر3[[#This Row],[التأمينات]]-خورشيد_علي_عمر3[[#This Row],[الغرامة]]-خورشيد_علي_عمر3[[#This Row],[سلفة مقبوضة]]-خورشيد_علي_عمر3[[#This Row],[دفعة عن القرض]]),\"\")","v":2045000},"2022-01-01","2025-01-01"]
[3,null,null,null,null,null,null,null,null,null,null,null,null,{"$f":"IFERROR(SUM(خورشيد_علي_عمر3[[#This Row],[الراتب الأساسي]]/خورشيد_علي_عمر3[[#This Row],[أيام الشهر]]*خورشيد_علي_عمر3[[#This Row],[عدد أيام العمل]]+خورشيد_علي_عمر3[[#This Row],[الزيادة]]+خورشيد_علي_عمر3[[#This Row],[المكافأة]]-خورشيد_علي_عمر3[[#This Row],[التأمينات]]-خورشيد_علي_عمر3[[#This Row],[الغرامة]]),\"\")","v":""},null,null,null,{"$f":"IFERROR(SUM(خورشيد_علي_عمر3[[#This Row],[الراتب المستحق]]-خورشيد_علي_عمر3[[#This Row],[سلفة مقبوضة]]-خورشيد_علي_عمر3[[#This Row],[دفعة عن القرض]]),\"\")","v":""},null,null,null,null,null,null,{"$f":"IFERROR(SUM(خورشيد_علي_عمر3[[#This Row],[الراتب الأساسي]]/خورشيد_علي_عمر3[[#This Row],[أيام الشهر]]*خورشيد_علي_عمر3[[#This Row],[عدد أيام العمل]]+خورشيد_علي_عمر3[[#This Row],[الزيادة]]+خورشيد_علي_عمر3[[#This Row],[المكافأة]]+خورشيد_علي_عمر3[[#This Row],[نجم الشهر]]+خورشيد_علي_عمر3[[#This Row],[كارت اتصال]]+خورشيد_علي_عمر3[[#This Row],[تاركت شهري]]+خورشيد_علي_عمر3[[#This Row],[عمل إضافي]]+خورشيد_علي_عمر3[[#This Row],[وزن مخزن]]),\"\")","v":""},{"$f":"IFERROR(SUM(خورشيد_علي_عمر3[[#This Row],[كامل المستحق بدون نقوصات]]-خورشيد_علي_عمر3[[#This Row],[التأمينات]]-خورشيد_علي_عمر3[[#This Row],[الغرامة]]-خورشيد_علي_عمر3[[#This Row],[سلفة مقبوضة]]-خورشيد_علي_عمر3[[#This Row],[دفعة عن القرض]]),\"\")","v":""}]
[4,null,null,null,null,null,null,null,null,null,null,null,null,{"$f":"IFERROR(SUM(خورشيد_علي_عمر3[[#This Row],[الراتب الأساسي]]/خورشيد_علي_عمر3[[#This Row],[أيام الشهر]]*خورشيد_علي_عمر3[[#This Row],[عدد أيام العمل]]+خورشيد_علي_عمر3[[#This Row],[الزيادة]]+خورشيد_علي_عمر3[[#This Row],[المكافأة]]-خورشيد_علي_عمر3[[#This Row],[التأمينات]]-خورشيد_علي_عمر3[[#This Row],[الغرامة]]),\"\")","v":""},null,null,null,{"$f":"IFERROR(SUM(خورشيد_علي_عمر3[[#This Row],[الراتب المستحق]]-خورشيد_علي_عمر3[[#This Row],[سلفة مقبوضة]]-خورشيد_علي_عمر3[[#This Row],[دفعة عن القرض]]),\"\")","v":""},null,null,null,null,null,null,{"$f":"IFERROR(SUM(خورشيد_علي_عمر3[[#This Row],[الراتب الأساسي]]/خورشيد_علي_عمر3[[#This Row],[أيام الشهر]]*خورشيد_علي_عمر3[[#This Row],[عدد أيام العمل]]+خورشيد_علي_عمر3[[#This Row],[الزيادة]]+خورشيد_علي_عمر3[[#This Row],[المكافأة]]+خورشيد_علي_عمر3[[#This Row],[نجم الشهر]]+خورشيد_علي_عمر3[[#This Row],[كارت اتصال]]+خورشيد_علي_عمر3[[#This Row],[تاركت شهري]]+خورشيد_علي_عمر3[[#This Row],[عمل إضافي]]+خورشيد_علي_عمر3[[#This Row],[وزن مخزن]]),\"\")","v":""},{"$f":"IFERROR(SUM(خورشيد_علي_عمر3[[#This Row],[كامل المستحق بدون نقوصات]]-خورشيد_علي_عمر3[[#This Row],[التأمينات]]-خورشيد_علي_عمر3[[#This Row],[الغرامة]]-خورشيد_علي_عمر3[[#This Row],[سلفة مقبوضة]]-خورشيد_علي_عمر3[[#This Row],[دفعة عن القرض]]),\"\")","v":""}]
[5,null,null,null,null,null,null,null,null,null,null,null,null,{"$f":"IFERROR(SUM(خورشيد_علي_عمر3[[#This Row],[الراتب الأساسي]]/خورشيد_علي_عمر3[[#This Row],[أيام الشهر]]*خورشيد_علي_عمر3[[#This Row],[عدد أيام العمل]]+خورشيد_علي_عمر3[[#This Row],[الزيادة]]+خورشيد_علي_عمر3[[#This Row],[المكافأة]]-خورشيد_علي_عمر3[[#This Row],[التأمينات]]-خورشيد_علي_عمر3[[#This Row],[الغرامة]]),\"\")","v":""},null,null,null,{"$f":"IFERROR(SUM(خورشيد_علي_عمر3[[#This Row],[الراتب المستحق]]-خورشيد_علي_عمر3[[#This Row],[سلفة مقبوضة]]-خورشيد_علي_عمر3[[#This Row],[دفعة عن القرض]]),\"\")","v":""},null,null,null,null,null,null,{"$f":"IFERROR(SUM(خورشيد_علي_عمر3[[#This Row],[الراتب الأساسي]]/خورشيد_علي_عمر3[[#This Row],[أيام الشهر]]*خورشيد_علي_عمر3[[#This Row],[عدد أيام العمل]]+خورشيد_علي_عمر3[[#This Row],[الزيادة]]+خورشيد_علي_عمر3[[#This Row],[المكافأة]]+خورشيد_علي_عمر3[[#This Row],[نجم الشهر]]+خورشيد_علي_عمر3[[#This Row],[كارت اتصال]]+خورشيد_علي_عمر3[[#This Row],[تاركت شهري]]+خورشيد_علي_عمر3[[#This Row],[عمل إضافي]]+خورشيد_علي_عمر3[[#This Row],[وزن مخزن]]),\"\")","v":""},{"$f":"IFERROR(SUM(خورشيد_علي_عمر3[[#This Row],[كامل المستحق بدون نقوصات]]-خورشيد_علي_عمر3[[#This Row],[التأمينات]]-خورشيد_علي_عمر3[[#This Row],[الغرامة]]-خورشيد_علي_عمر3[[#This Row],[سلفة مقبوضة]]-خورشيد_علي_عمر3[[#This Row],[دفعة عن القرض]]),\"\")","v":""}]
[6,null,null,null,null,null,null,null,null,null,null,null,null,{"$f":"IFERROR(SUM(خورشيد_علي_عمر3[[#This Row],[الراتب الأساسي]]/خورشيد_علي_عمر3[[#This Row],[أيام الشهر]]*خورشيد_علي_عمر3[[#This Row],[عدد أيام العمل]]+خورشيد_علي_عمر3[[#This Row],[الزيادة]]+خورشيد_علي_عمر3[[#This Row],[المكافأة]]-خورشيد_علي_عمر3[[#This Row],[التأمينات]]-خورشيد_علي_عمر3[[#This Row],[الغرامة]]),\"\")","v":""},null,null,null,{"$f":"IFERROR(SUM(خورشيد_علي_عمر3[[#This Row],[الراتب المستحق]]-خورشيد_علي_عمر3[[#This Row],[سلفة مقبوضة]]-خورشيد_علي_عمر3[[#This Row],[دفعة عن القرض]]),\"\")","v":""},null,null,null,null,null,null,{"$f":"IFERROR(SUM(خورشيد_علي_عمر3[[#This Row],[الراتب الأساسي]]/خورشيد_علي_عمر3[[#This Row],[أيام الشهر]]*خورشيد_علي_عمر3[[#This Row],[عدد أيام العمل]]+خورشيد_علي_عمر3[[#This Row],[الزيادة]]+خورشيد_علي_عمر3[[#This Row],[المكافأة]]+خورشيد_علي_عمر3[[#This Row],[نجم الشهر]]+خورشيد_علي_عمر3[[#This Row],[كارت اتصال]]+خورشيد_علي_عمر3[[#This Row],[تاركت شهري]]+خورشيد_علي_عمر3[[#This Row],[عمل إضافي]]+خورشيد_علي_عمر3[[#This Row],[وزن مخزن]]),\"\")","v":""},{"$f":"IFERROR(SUM(خورشيد_علي_عمر3[[#This Row],[كامل المستحق بدون نقوصات]]-خورشيد_علي_عمر3[[#This Row],[التأمينات]]-خورشيد_علي_عمر3[[#This Row],[الغرامة]]-خورشيد_علي_عمر3[[#This Row],[سلفة مقبوضة]]-خورشيد_علي_عمر3[[#This Row],[دفعة عن القرض]]),\"\")","v":""}]
[7,null,null,null,null,null,null,null,null,null,null,null,null,{"$f":"IFERROR(SUM(خورشيد_علي_عمر3[[#This Row],[الراتب الأساسي]]/خورشيد_علي_عمر3[[#This Row],[أيام الشهر]]*خورشيد_علي_عمر3[[#This Row],[عدد أيام العمل]]+خورشيد_علي_عمر3[[#This Row],[الزيادة]]+خورشيد_علي_عمر3[[#This Row],[المكافأة]]-خورشيد_علي_عمر3[[#This Row],[التأمينات]]-خورشيد_علي_عمر3[[#This Row],[الغرامة]]),\"\")","v":""},null,null,null,{"$f":"IFERROR(SUM(خورشيد_علي_عمر3[[#This Row],[الراتب المستحق]]-خورشيد_علي_عمر3[[#This Row],[سلفة مقبوضة]]-خورشيد_علي_عمر3[[#This Row],[دفعة عن القرض]]),\"\")","v":""},null,null,null,null,null,null,{"$f":"IFERROR(SUM(خورشيد_علي_عمر3[[#This Row],[الراتب الأساسي]]/خورشيد_علي_عمر3[[#This Row],[أيام الشهر]]*خورشيد_علي_عمر3[[#This Row],[عدد أيام العمل]]+خورشيد_علي_عمر3[[#This Row],[الزيادة]]+خورشيد_علي_عمر3[[#This Row],[المكافأة]]+خورشيد_علي_عمر3[[#This Row],[نجم الشهر]]+خورشيد_علي_عمر3[[#This Row],[كارت اتصال]]+خورشيد_علي_عمر3[[#This Row],[تاركت شهري]]+خورشيد_علي_عمر3[[#This Row],[عمل إضافي]]+خورشيد_علي_عمر3[[#This Row],[وزن مخزن]]),\"\")","v":""},{"$f":"IFERROR(SUM(خورشيد_علي_عمر3[[#This Row],[كامل المستحق بدون نقوصات]]-خورشيد_علي_عمر3[[#This Row],[التأمينات]]-خورشيد_علي_عمر3[[#This Row],[الغرامة]]-خورشيد_علي_عمر3[[#This Row],[سلفة مقبوضة]]-خورشيد_علي_عمر3[[#This Row],[دفعة عن القرض]]),\"\")","v":""}]
[8,null,null,null,null,null,null,null,null,null,null,null,null,{"$f":"IFERROR(SUM(خورشيد_علي_عمر3[[#This Row],[الراتب الأساسي]]/خورشيد_علي_عمر3[[#This Row],[أيام الشهر]]*خورشيد_علي_عمر3[[#This Row],[عدد أيام العمل]]+خورشيد_علي_عمر3[[#This Row],[الزيادة]]+خورشيد_علي_عمر3[[#This Row],[المكافأة]]-خورشيد_علي_عمر3[[#This Row],[التأمينات]]-خورشيد_علي_عمر3[[#This Row],[الغرامة]]),\"\")","v":""},null,null,null,{"$f":"IFERROR(SUM(خورشيد_علي_عمر3[[#This Row],[الراتب المستحق]]-خورشيد_علي_عمر3[[#This Row],[سلفة مقبوضة]]-خورشيد_علي_عمر3[[#This Row],[دفعة عن القرض]]),\"\")","v":""},null,null,null,null,null,null,{"$f":"IFERROR(SUM(خورشيد_علي_عمر3[[#This Row],[الراتب الأساسي]]/خورشيد_علي_عمر3[[#This Row],[أيام الشهر]]*خورشيد_علي_عمر3[[#This Row],[عدد أيام العمل]]+خورشيد_علي_عمر3[[#This Row],[الزيادة]]+خورشيد_علي_عمر3[[#This Row],[المكافأة]]+خورشيد_علي_عمر3[[#This Row],[نجم الشهر]]+خورشيد_علي_عمر3[[#This Row],[كارت اتصال]]+خورشيد_علي_عمر3[[#This Row],[تاركت شهري]]+خورشيد_علي_عمر3[[#This Row],[عمل إضافي]]+خورشيد_علي_عمر3[[#This Row],[وزن مخزن]]),\"\")","v":""},{"$f":"IFERROR(SUM(خورشيد_علي_عمر3[[#This Row],[كامل المستحق بدون نقوصات]]-خورشيد_علي_عمر3[[#This Row],[التأمينات]]-خورشيد_علي_عمر3[[#This Row],[الغرامة]]-خورشيد_علي_عمر3[[#This Row],[سلفة مقبوضة]]-خورشيد_علي_عمر3[[#This Row],[دفعة عن القرض]]),\"\")","v":""}]
[9,null,null,null,null,null,null,null,null,null,null,null,null,{"$f":"IFERROR(SUM(خورشيد_علي_عمر3[[#This Row],[الراتب الأساسي]]/خورشيد_علي_عمر3[[#This Row],[أيام الشهر]]*خورشيد_علي_عمر3[[#This Row],[عدد أيام العمل]]+خورشيد_علي_عمر3[[#This Row],[الزيادة]]+خورشيد_علي_عمر3[[#This Row],[المكافأة]]-خورشيد_علي_عمر3[[#This Row],[التأمينات]]-خورشيد_علي_عمر3[[#This Row],[الغرامة]]),\"\")","v":""},null,null,null,{"$f":"IFERROR(SUM(خورشيد_علي_عمر3[[#This Row],[الراتب المستحق]]-خورشيد_علي_عمر3[[#This Row],[سلفة مقبوضة]]-خورشيد_علي_عمر3[[#This Row],[دفعة عن القرض]]),\"\")","v":""},null,null,null,null,null,null,{"$f":"IFERROR(SUM(خورشيد_علي_عمر3[[#This Row],[الراتب الأساسي]]/خورشيد_علي_عمر3[[#This Row],[أيام الشهر]]*خورشيد_علي_عمر3[[#This Row],[عدد أيام العمل]]+خورشيد_علي_عمر3[[#This Row],[الزيادة]]+خورشيد_علي_عمر3[[#This Row],[المكافأة]]+خورشيد_علي_عمر3[[#This Row],[نجم الشهر]]+خورشيد_علي_عمر3[[#This Row],[كارت اتصال]]+خورشيد_علي_عمر3[[#This Row],[تاركت شهري]]+خورشيد_علي_عمر3[[#This Row],[عمل إضافي]]+خورشيد_علي_عمر3[[#This Row],[وزن مخزن]]),\"\")","v":""},{"$f":"IFERROR(SUM(خورشيد_علي_عمر3[[#This Row],[كامل المستحق بدون نقوصات]]-خورشيد_علي_عمر3[[#This Row],[التأمينات]]-خورشيد_علي_عمر3[[#This Row],[الغرامة]]-خورشيد_علي_عمر3[[#This Row],[سلفة مقبوضة]]-خورشيد_علي_عمر3[[#This Row],[دفعة عن القرض]]),\"\")","v":""}]
[10,null,null,null,null,null,null,null,null,null,null,null,null,{"$f":"IFERROR(SUM(خورشيد_علي_عمر3[[#This Row],[الراتب الأساسي]]/خورشيد_علي_عمر3[[#This Row],[أيام الشهر]]*خورشيد_علي_عمر3[[#This Row],[عدد أيام العمل]]+خورشيد_علي_عمر3[[#This Row],[الزيادة]]+خورشيد_علي_عمر3[[#This Row],[المكافأة]]-خورشيد_علي_عمر3[[#This Row],[التأمينات]]-خورشيد_علي_عمر3[[#This Row],[الغرامة]]),\"\")","v":""},null,null,null,{"$f":"IFERROR(SUM(خورشيد_علي_عمر3[[#This Row],[الراتب المستحق]]-خورشيد_علي_عمر3[[#This Row],[سلفة مقبوضة]]-خورشيد_علي_عمر3[[#This Row],[دفعة عن القرض]]),\"\")","v":""},null,null,null,null,null,null,{"$f":"IFERROR(SUM(خورشيد_علي_عمر3[[#This Row],[الراتب الأساسي]]/خورشيد_علي_عمر3[[#This Row],[أيام الشهر]]*خورشيد_علي_عمر3[[#This Row],[عدد أيام العمل]]+خورشيد_علي_عمر3[[#This Row],[الزيادة]]+خورشيد_علي_عمر3[[#This Row],[المكافأة]]+خورشيد_علي_عمر3[[#This Row],[نجم الشهر]]+خورشيد_علي_عمر3[[#This Row],[كارت اتصال]]+خورشيد_علي_عمر3[[#This Row],[تاركت شهري]]+خورشيد_علي_عمر3[[#This Row],[عمل إضافي]]+خورشيد_علي_عمر3[[#This Row],[وزن مخزن]]),\"\")","v":""},{"$f":"IFERROR(SUM(خورشيد_علي_عمر3[[#This Row],[كامل المستحق بدون نقوصات]]-خورشيد_علي_عمر3[[#This Row],[التأمينات]]-خورشيد_علي_عمر3[[#This Row],[الغرامة]]-خورشيد_علي_عمر3[[#This Row],[سلفة مقبوضة]]-خورشيد_علي_عمر3[[#This Row],[دفعة عن القرض]]),\"\")","v":""}]
[11,null,null,null,null,null,null,null,null,null,null,null,null,{"$f":"IFERROR(SUM(خورشيد_علي_عمر3[[#This Row],[الراتب الأساسي]]/خورشيد_علي_عمر3[[#This Row],[أيام الشهر]]*خورشيد_علي_عمر3[[#This Row],[عدد أيام العمل]]+خورشيد_علي_عمر3[[#This Row],[الزيادة]]+خورشيد_علي_عمر3[[#This Row],[المكافأة]]-خورشيد_علي_عمر3[[#This Row],[التأمينات]]-خورشيد_علي_عمر3[[#This Row],[الغرامة]]),\"\")","v":""},null,null,null,{"$f":"IFERROR(SUM(خورشيد_علي_عمر3[[#This Row],[الراتب المستحق]]-خورشيد_علي_عمر3[[#This Row],[سلفة مقبوضة]]-خورشيد_علي_عمر3[[#This Row],[دفعة عن القرض]]),\"\")","v":""},null,null,null,null,null,null,{"$f":"IFERROR(SUM(خورشيد_علي_عمر3[[#This Row],[الراتب الأساسي]]/خورشيد_علي_عمر3[[#This Row],[أيام الشهر]]*خورشيد_علي_عمر3[[#This Row],[عدد أيام العمل]]+خورشيد_علي_عمر3[[#This Row],[الزيادة]]+خورشيد_علي_عمر3[[#This Row],[المكافأة]]+خورشيد_علي_عمر3[[#This Row],[نجم الشهر]]+خورشيد_علي_عمر3[[#This Row],[كارت اتصال]]+خورشيد_علي_عمر3[[#This Row],[تاركت شهري]]+خورشيد_علي_عمر3[[#This Row],[عمل إضافي]]+خورشيد_علي_عمر3[[#This Row],[وزن مخزن]]),\"\")","v":""},{"$f":"IFERROR(SUM(خورشيد_علي_عمر3[[#This Row],[كامل المستحق بدون نقوصات]]-خورشيد_علي_عمر3[[#This Row],[التأمينات]]-خورشيد_علي_عمر3[[#This Row],[الغرامة]]-خورشيد_علي_عمر3[[#This Row],[سلفة مقبوضة]]-خورشيد_علي_عمر3[[#This Row],[دفعة عن القرض]]),\"\")","v":""}]
[12,null,null,null,null,null,null,null,null,null,null,null,null,{"$f":"IFERROR(SUM(خورشيد_علي_عمر3[[#This Row],[الراتب الأساسي]]/خورشيد_علي_عمر3[[#This Row],[أيام الشهر]]*خورشيد_علي_عمر3[[#This Row],[عدد أيام العمل]]+خورشيد_علي_عمر3[[#This Row],[الزيادة]]+خورشيد_علي_عمر3[[#This Row],[المكافأة]]-خورشيد_علي_عمر3[[#This Row],[التأمينات]]-خورشيد_علي_عمر3[[#This Row],[الغرامة]]),\"\")","v":""},null,null,null,{"$f":"IFERROR(SUM(خورشيد_علي_عمر3[[#This Row],[الراتب المستحق]]-خورشيد_علي_عمر3[[#This Row],[سلفة مقبوضة]]-خورشيد_علي_عمر3[[#This Row],[دفعة عن القرض]]),\"\")","v":""},null,null,null,null,null,null,{"$f":"IFERROR(SUM(خورشيد_علي_عمر3[[#This Row],[الراتب الأساسي]]/خورشيد_علي_عمر3[[#This Row],[أيام الشهر]]*خورشيد_علي_عمر3[[#This Row],[عدد أيام العمل]]+خورشيد_علي_عمر3[[#This Row],[الزيادة]]+خورشيد_علي_عمر3[[#This Row],[المكافأة]]+خورشيد_علي_عمر3[[#This Row],[نجم الشهر]]+خورشيد_علي_عمر3[[#This Row],[كارت اتصال]]+خورشيد_علي_عمر3[[#This Row],[تاركت شهري]]+خورشيد_علي_عمر3[[#This Row],[عمل إضافي]]+خورشيد_علي_عمر3[[#This Row],[وزن مخزن]]),\"\")","v":""},{"$f":"IFERROR(SUM(خورشيد_علي_عمر3[[#This Row],[كامل المستحق بدون نقوصات]]-خورشيد_علي_عمر3[[#This Row],[التأمينات]]-خورشيد_علي_عمر3[[#This Row],[الغرامة]]-خورشيد_علي_عمر3[[#This Row],[سلفة مقبوضة]]-خورشيد_علي_عمر3[[#This Row],[دفعة عن القرض]]),\"\")","v":""}]
[13,null,null,null,null,null,null,null,null,null,null,null,null,{"$f":"IFERROR(SUM(خورشيد_علي_عمر3[[#This Row],[الراتب الأساسي]]/خورشيد_علي_عمر3[[#This Row],[أيام الشهر]]*خورشيد_علي_عمر3[[#This Row],[عدد أيام العمل]]+خورشيد_علي_عمر3[[#This Row],[الزيادة]]+خورشيد_علي_عمر3[[#This Row],[المكافأة]]-خورشيد_علي_عمر3[[#This Row],[التأمينات]]-خورشيد_علي_عمر3[[#This Row],[الغرامة]]),\"\")","v":""},null,null,null,{"$f":"IFERROR(SUM(خورشيد_علي_عمر3[[#This Row],[الراتب المستحق]]-خورشيد_علي_عمر3[[#This Row],[سلفة مقبوضة]]-خورشيد_علي_عمر3[[#This Row],[دفعة عن القرض]]),\"\")","v":""},null,null,null,null,null,null,{"$f":"IFERROR(SUM(خورشيد_علي_عمر3[[#This Row],[الراتب الأساسي]]/خورشيد_علي_عمر3[[#This Row],[أيام الشهر]]*خورشيد_علي_عمر3[[#This Row],[عدد أيام العمل]]+خورشيد_علي_عمر3[[#This Row],[الزيادة]]+خورشيد_علي_عمر3[[#This Row],[المكافأة]]+خورشيد_علي_عمر3[[#This Row],[نجم الشهر]]+خورشيد_علي_عمر3[[#This Row],[كارت اتصال]]+خورشيد_علي_عمر3[[#This Row],[تاركت شهري]]+خورشيد_علي_عمر3[[#This Row],[عمل إضافي]]+خورشيد_علي_عمر3[[#This Row],[وزن مخزن]]),\"\")","v":""},{"$f":"IFERROR(SUM(خورشيد_علي_عمر3[[#This Row],[كامل المستحق بدون نقوصات]]-خورشيد_علي_عمر3[[#This Row],[التأمينات]]-خورشيد_علي_عمر3[[#This Row],[الغرامة]]-خورشيد_علي_عمر3[[#This Row],[سلفة مقبوضة]]-خورشيد_علي_عمر3[[#This Row],[دفعة عن القرض]]),\"\")","v":""}]
[1000,null,null,null,null,null,null,null,null,null,null,null,null,{"$f":"IFERROR(SUM(خورشيد_علي_عمر3[[#This Row],[الراتب الأساسي]]/خورشيد_علي_عمر3[[#This Row],[أيام الشهر]]*خورشيد_علي_عمر3[[#This Row],[عدد أيام العمل]]+خورشيد_علي_عمر3[[#This Row],[الزيادة]]+خورشيد_علي_عمر3[[#This Row],[المكافأة]]-خورشيد_علي_عمر3[[#This Row],[التأمينات]]-خورشيد_علي_عمر3[[#This Row],[الغرامة]]),\"\")","v":""},null,null,null,{"$f":"IFERROR(SUM(خورشيد_علي_عمر3[[#This Row],[الراتب المستحق]]-خورشيد_علي_عمر3[[#This Row],[سلفة مقبوضة]]-خورشيد_علي_عمر3[[#This Row],[دفعة عن القرض]]),\"\")","v":""},null,null,null,null,null,null,{"$f":"IFERROR(SUM(خورشيد_علي_عمر3[[#This Row],[الراتب الأساسي]]/خورشيد_علي_عمر3[[#This Row],[أيام الشهر]]*خورشيد_علي_عمر3[[#This Row],[عدد أيام العمل]]+خورشيد_علي_عمر3[[#This Row],[الزيادة]]+خورشيد_علي_عمر3[[#This Row],[المكافأة]]+خورشيد_علي_عمر3[[#This Row],[نجم الشهر]]+خورشيد_علي_عمر3[[#This Row],[كارت اتصال]]+خورشيد_علي_عمر3[[#This Row],[تاركت شهري]]+خورشيد_علي_عمر3[[#This Row],[عمل إضافي]]+خورشيد_علي_عمر3[[#This Row],[وزن مخزن]]),\"\")","v":""},{"$f":"IFERROR(SUM(خورشيد_علي_عمر3[[#This Row],[كامل المستحق بدون نقوصات]]-خورشيد_علي_عمر3[[#This Row],[التأمينات]]-خورشيد_علي_عمر3[[#This Row],[الغرامة]]-خورشيد_علي_عمر3[[#This Row],[سلفة مقبوضة]]-خورشيد_علي_عمر3[[#This Row],[دفعة عن القرض]]),\"\")","v":""}]
[null,null,null,null,{"$f":"SUBTOTAL(109,خورشيد_علي_عمر3[الراتب الأساسي])","v":3500000},null,null,{"$f":"SUBTOTAL(109,H5:H18)","v":125000},{"$f":"SUBTOTAL(109,I5:I18)","v":60000},null,{"$f":"SUBTOTAL(109,K5:K18)","v":35000},{"$f":"SUBTOTAL(109,L5:L18)","v":30000},null,{"$f":"SUBTOTAL(109,N5:N18)","v":3570000},75000,150000,800000,3345000,25000,0,0,0,{"$f":"SUBTOTAL(109,خورشيد_علي_عمر3[عمل إضافي])","v":0},{"$f":"SUBTOTAL(109,خورشيد_علي_عمر3[وزن مخزن])","v":0},null,{"$f":"SUBTOTAL(109,خورشيد_علي_عمر3[كامل المستلم الفعلي])","v":3370000}]

{"sheet":"3.2023","index":3,"n_rows":19,"n_cols":29,"rows_kept":19,"cut":false,"hidden":false,"merged":[]}
[]
[]
[]
["تسلسل","الاسم الثلاثي","القسم","المسمى الوظيفي","الراتب الأساسي","أيام الشهر","عدد أيام العمل","الزيادة","المكافأة","نوع المكافأة","التأمينات","الغرامة","نوع الغرامة","الراتب المستحق","سلفة مقبوضة","دفعة عن القرض","الباقي من القرض","الراتب المستلم الفعلي","نجم الشهر","كارت اتصال","تاركيت اسبوعي","تاركت شهري","عمل إضافي","وزن مخزن","كامل المستحق بدون نقوصات","كامل المستلم الفعلي","المباشرة","الاستقالة","الملاحظات"]
[1,"سامي","الإدارة","امين صندوق",1500000,30,29,25000,10000,"من الإدارة",10000,25000,"مرورية",{"$f":"IFERROR(SUM(خورشيد_علي_عمر34[[#This Row],[الراتب الأساسي]]/خورشيد_علي_عمر34[[#This Row],[أيام الشهر]]*خورشيد_علي_عمر34[[#This Row],[عدد أيام العمل]]+خورشيد_علي_عمر34[[#This Row],[الزيادة]]+خورشيد_علي_عمر34[[#This Row],[المكافأة]]-خورشيد_علي_عمر34[[#This Row],[التأمينات]]-خورشيد_علي_عمر34[[#This Row],[الغرامة]]),\"\")","v":1450000},50000,100000,600000,{"$f":"IFERROR(SUM(خورشيد_علي_عمر34[[#This Row],[الراتب المستحق]]-خورشيد_علي_عمر34[[#This Row],[سلفة مقبوضة]]-خورشيد_علي_عمر34[[#This Row],[دفعة عن القرض]]),\"\")","v":1300000},25000,null,null,null,null,null,{"$f":"IFERROR(SUM(خورشيد_علي_عمر34[[#This Row],[الراتب الأساسي]]/خورشيد_علي_عمر34[[#This Row],[أيام الشهر]]*خورشيد_علي_عمر34[[#This Row],[عدد أيام العمل]]+خورشيد_علي_عمر34[[#This Row],[الزيادة]]+خورشيد_علي_عمر34[[#This Row],[المكافأة]]+خورشيد_علي_عمر34[[#This Row],[نجم الشهر]]+خورشيد_علي_عمر34[[#This Row],[كارت اتصال]]+خورشيد_علي_عمر34[[#This Row],[تاركت شهري]]+خورشيد_علي_عمر34[[#This Row],[عمل إضافي]]+خورشيد_علي_عمر34[[#This Row],[وزن مخزن]]),\"\")","v":1510000},{"$f":"IFERROR(SUM(خورشيد_علي_عمر34[[#This Row],[كامل المستحق بدون نقوصات]]-خورشيد_علي_عمر34[[#This Row],[التأمينات]]-خورشيد_علي_عمر34[[#This Row],[الغرامة]]-خورشيد_علي_عمر34[[#This Row],[سلفة مقبوضة]]-خورشيد_علي_عمر34[[#This Row],[دفعة عن القرض]]),\"\")","v":1325000},"2023-01-01","2024-01-01","لا يوجد"]
[2,"كريم","الإدارة","مدير",2000000,30,30,100000,50000,"المدير",25000,5000,"مرورية",{"$f":"IFERROR(SUM(خورشيد_علي_عمر34[[#This Row],[الراتب الأساسي]]/خورشيد_علي_عمر34[[#This Row],[أيام الشهر]]*خورشيد_علي_عمر34[[#This Row],[عدد أيام العمل]]+خورشيد_علي_عمر34[[#This Row],[الزيادة]]+خورشيد_علي_عمر34[[#This Row],[المكافأة]]-خورشيد_علي_عمر34[[#This Row],[التأمينات]]-خورشيد_علي_عمر34[[#This Row],[الغرامة]]),\"\")","v":2120000},25000,50000,200000,{"$f":"IFERROR(SUM(خورشيد_علي_عمر34[[#This Row],[الراتب المستحق]]-خورشيد_علي_عمر34[[#This Row],[سلفة مقبوضة]]-خورشيد_علي_عمر34[[#This Row],[دفعة عن القرض]]),\"\")","v":2045000},null,null,null,null,null,null,{"$f":"IFERROR(SUM(خورشيد_علي_عمر34[[#This Row],[الراتب الأساسي]]/خورشيد_علي_عمر34[[#This Row],[أيام الشهر]]*خورشيد_علي_عمر34[[#This Row],[عدد أيام العمل]]+خورشيد_علي_عمر34[[#This Row],[الزيادة]]+خورشيد_علي_عمر34[[#This Row],[المكافأة]]+خورشيد_علي_عمر34[[#This Row],[نجم الشهر]]+خورشيد_علي_عمر34[[#This Row],[كارت اتصال]]+خورشيد_علي_عمر34[[#This Row],[تاركت شهري]]+خورشيد_علي_عمر34[[#This Row],[عمل إضافي]]+خورشيد_علي_عمر34[[#This Row],[وزن مخزن]]),\"\")","v":2150000},{"$f":"IFERROR(SUM(خورشيد_علي_عمر34[[#This Row],[كامل المستحق بدون نقوصات]]-خورشيد_علي_عمر34[[#This Row],[التأمينات]]-خورشيد_علي_عمر34[[#This Row],[الغرامة]]-خورشيد_علي_عمر34[[#This Row],[سلفة مقبوضة]]-خورشيد_علي_عمر34[[#This Row],[دفعة عن القرض]]),\"\")","v":2045000},"2022-01-01","2025-01-01"]
[3,null,null,null,null,null,null,null,null,null,null,null,null,{"$f":"IFERROR(SUM(خورشيد_علي_عمر34[[#This Row],[الراتب الأساسي]]/خورشيد_علي_عمر34[[#This Row],[أيام الشهر]]*خورشيد_علي_عمر34[[#This Row],[عدد أيام العمل]]+خورشيد_علي_عمر34[[#This Row],[الزيادة]]+خورشيد_علي_عمر34[[#This Row],[المكافأة]]-خورشيد_علي_عمر34[[#This Row],[التأمينات]]-خورشيد_علي_عمر34[[#This Row],[الغرامة]]),\"\")","v":""},null,null,null,{"$f":"IFERROR(SUM(خورشيد_علي_عمر34[[#This Row],[الراتب المستحق]]-خورشيد_علي_عمر34[[#This Row],[سلفة مقبوضة]]-خورشيد_علي_عمر34[[#This Row],[دفعة عن القرض]]),\"\")","v":""},null,null,null,null,null,null,{"$f":"IFERROR(SUM(خورشيد_علي_عمر34[[#This Row],[الراتب الأساسي]]/خورشيد_علي_عمر34[[#This Row],[أيام الشهر]]*خورشيد_علي_عمر34[[#This Row],[عدد أيام العمل]]+خورشيد_علي_عمر34[[#This Row],[الزيادة]]+خورشيد_علي_عمر34[[#This Row],[المكافأة]]+خورشيد_علي_عمر34[[#This Row],[نجم الشهر]]+خورشيد_علي_عمر34[[#This Row],[كارت اتصال]]+خورشيد_علي_عمر34[[#This Row],[تاركت شهري]]+خورشيد_علي_عمر34[[#This Row],[عمل إضافي]]+خورشيد_علي_عمر34[[#This Row],[وزن مخزن]]),\"\")","v":""},{"$f":"IFERROR(SUM(خورشيد_علي_عمر34[[#This Row],[كامل المستحق بدون نقوصات]]-خورشيد_علي_عمر34[[#This Row],[التأمينات]]-خورشيد_علي_عمر34[[#This Row],[الغرامة]]-خورشيد_علي_عمر34[[#This Row],[سلفة مقبوضة]]-خورشيد_علي_عمر34[[#This Row],[دفعة عن القرض]]),\"\")","v":""}]
[4,null,null,null,null,null,null,null,null,null,null,null,null,{"$f":"IFERROR(SUM(خورشيد_علي_عمر34[[#This Row],[الراتب الأساسي]]/خورشيد_علي_عمر34[[#This Row],[أيام الشهر]]*خورشيد_علي_عمر34[[#This Row],[عدد أيام العمل]]+خورشيد_علي_عمر34[[#This Row],[الزيادة]]+خورشيد_علي_عمر34[[#This Row],[المكافأة]]-خورشيد_علي_عمر34[[#This Row],[التأمينات]]-خورشيد_علي_عمر34[[#This Row],[الغرامة]]),\"\")","v":""},null,null,null,{"$f":"IFERROR(SUM(خورشيد_علي_عمر34[[#This Row],[الراتب المستحق]]-خورشيد_علي_عمر34[[#This Row],[سلفة مقبوضة]]-خورشيد_علي_عمر34[[#This Row],[دفعة عن القرض]]),\"\")","v":""},null,null,null,null,null,null,{"$f":"IFERROR(SUM(خورشيد_علي_عمر34[[#This Row],[الراتب الأساسي]]/خورشيد_علي_عمر34[[#This Row],[أيام الشهر]]*خورشيد_علي_عمر34[[#This Row],[عدد أيام العمل]]+خورشيد_علي_عمر34[[#This Row],[الزيادة]]+خورشيد_علي_عمر34[[#This Row],[المكافأة]]+خورشيد_علي_عمر34[[#This Row],[نجم الشهر]]+خورشيد_علي_عمر34[[#This Row],[كارت اتصال]]+خورشيد_علي_عمر34[[#This Row],[تاركت شهري]]+خورشيد_علي_عمر34[[#This Row],[عمل إضافي]]+خورشيد_علي_عمر34[[#This Row],[وزن مخزن]]),\"\")","v":""},{"$f":"IFERROR(SUM(خورشيد_علي_عمر34[[#This Row],[كامل المستحق بدون نقوصات]]-خورشيد_علي_عمر34[[#This Row],[التأمينات]]-خورشيد_علي_عمر34[[#This Row],[الغرامة]]-خورشيد_علي_عمر34[[#This Row],[سلفة مقبوضة]]-خورشيد_علي_عمر34[[#This Row],[دفعة عن القرض]]),\"\")","v":""}]
[5,null,null,null,null,null,null,null,null,null,null,null,null,{"$f":"IFERROR(SUM(خورشيد_علي_عمر34[[#This Row],[الراتب الأساسي]]/خورشيد_علي_عمر34[[#This Row],[أيام الشهر]]*خورشيد_علي_عمر34[[#This Row],[عدد أيام العمل]]+خورشيد_علي_عمر34[[#This Row],[الزيادة]]+خورشيد_علي_عمر34[[#This Row],[المكافأة]]-خورشيد_علي_عمر34[[#This Row],[التأمينات]]-خورشيد_علي_عمر34[[#This Row],[الغرامة]]),\"\")","v":""},null,null,null,{"$f":"IFERROR(SUM(خورشيد_علي_عمر34[[#This Row],[الراتب المستحق]]-خورشيد_علي_عمر34[[#This Row],[سلفة مقبوضة]]-خورشيد_علي_عمر34[[#This Row],[دفعة عن القرض]]),\"\")","v":""},null,null,null,null,null,null,{"$f":"IFERROR(SUM(خورشيد_علي_عمر34[[#This Row],[الراتب الأساسي]]/خورشيد_علي_عمر34[[#This Row],[أيام الشهر]]*خورشيد_علي_عمر34[[#This Row],[عدد أيام العمل]]+خورشيد_علي_عمر34[[#This Row],[الزيادة]]+خورشيد_علي_عمر34[[#This Row],[المكافأة]]+خورشيد_علي_عمر34[[#This Row],[نجم الشهر]]+خورشيد_علي_عمر34[[#This Row],[كارت اتصال]]+خورشيد_علي_عمر34[[#This Row],[تاركت شهري]]+خورشيد_علي_عمر34[[#This Row],[عمل إضافي]]+خورشيد_علي_عمر34[[#This Row],[وزن مخزن]]),\"\")","v":""},{"$f":"IFERROR(SUM(خورشيد_علي_عمر34[[#This Row],[كامل المستحق بدون نقوصات]]-خورشيد_علي_عمر34[[#This Row],[التأمينات]]-خورشيد_علي_عمر34[[#This Row],[الغرامة]]-خورشيد_علي_عمر34[[#This Row],[سلفة مقبوضة]]-خورشيد_علي_عمر34[[#This Row],[دفعة عن القرض]]),\"\")","v":""}]
[6,null,null,null,null,null,null,null,null,null,null,null,null,{"$f":"IFERROR(SUM(خورشيد_علي_عمر34[[#This Row],[الراتب الأساسي]]/خورشيد_علي_عمر34[[#This Row],[أيام الشهر]]*خورشيد_علي_عمر34[[#This Row],[عدد أيام العمل]]+خورشيد_علي_عمر34[[#This Row],[الزيادة]]+خورشيد_علي_عمر34[[#This Row],[المكافأة]]-خورشيد_علي_عمر34[[#This Row],[التأمينات]]-خورشيد_علي_عمر34[[#This Row],[الغرامة]]),\"\")","v":""},null,null,null,{"$f":"IFERROR(SUM(خورشيد_علي_عمر34[[#This Row],[الراتب المستحق]]-خورشيد_علي_عمر34[[#This Row],[سلفة مقبوضة]]-خورشيد_علي_عمر34[[#This Row],[دفعة عن القرض]]),\"\")","v":""},null,null,null,null,null,null,{"$f":"IFERROR(SUM(خورشيد_علي_عمر34[[#This Row],[الراتب الأساسي]]/خورشيد_علي_عمر34[[#This Row],[أيام الشهر]]*خورشيد_علي_عمر34[[#This Row],[عدد أيام العمل]]+خورشيد_علي_عمر34[[#This Row],[الزيادة]]+خورشيد_علي_عمر34[[#This Row],[المكافأة]]+خورشيد_علي_عمر34[[#This Row],[نجم الشهر]]+خورشيد_علي_عمر34[[#This Row],[كارت اتصال]]+خورشيد_علي_عمر34[[#This Row],[تاركت شهري]]+خورشيد_علي_عمر34[[#This Row],[عمل إضافي]]+خورشيد_علي_عمر34[[#This Row],[وزن مخزن]]),\"\")","v":""},{"$f":"IFERROR(SUM(خورشيد_علي_عمر34[[#This Row],[كامل المستحق بدون نقوصات]]-خورشيد_علي_عمر34[[#This Row],[التأمينات]]-خورشيد_علي_عمر34[[#This Row],[الغرامة]]-خورشيد_علي_عمر34[[#This Row],[سلفة مقبوضة]]-خورشيد_علي_عمر34[[#This Row],[دفعة عن القرض]]),\"\")","v":""}]
[7,null,null,null,null,null,null,null,null,null,null,null,null,{"$f":"IFERROR(SUM(خورشيد_علي_عمر34[[#This Row],[الراتب الأساسي]]/خورشيد_علي_عمر34[[#This Row],[أيام الشهر]]*خورشيد_علي_عمر34[[#This Row],[عدد أيام العمل]]+خورشيد_علي_عمر34[[#This Row],[الزيادة]]+خورشيد_علي_عمر34[[#This Row],[المكافأة]]-خورشيد_علي_عمر34[[#This Row],[التأمينات]]-خورشيد_علي_عمر34[[#This Row],[الغرامة]]),\"\")","v":""},null,null,null,{"$f":"IFERROR(SUM(خورشيد_علي_عمر34[[#This Row],[الراتب المستحق]]-خورشيد_علي_عمر34[[#This Row],[سلفة مقبوضة]]-خورشيد_علي_عمر34[[#This Row],[دفعة عن القرض]]),\"\")","v":""},null,null,null,null,null,null,{"$f":"IFERROR(SUM(خورشيد_علي_عمر34[[#This Row],[الراتب الأساسي]]/خورشيد_علي_عمر34[[#This Row],[أيام الشهر]]*خورشيد_علي_عمر34[[#This Row],[عدد أيام العمل]]+خورشيد_علي_عمر34[[#This Row],[الزيادة]]+خورشيد_علي_عمر34[[#This Row],[المكافأة]]+خورشيد_علي_عمر34[[#This Row],[نجم الشهر]]+خورشيد_علي_عمر34[[#This Row],[كارت اتصال]]+خورشيد_علي_عمر34[[#This Row],[تاركت شهري]]+خورشيد_علي_عمر34[[#This Row],[عمل إضافي]]+خورشيد_علي_عمر34[[#This Row],[وزن مخزن]]),\"\")","v":""},{"$f":"IFERROR(SUM(خورشيد_علي_عمر34[[#This Row],[كامل المستحق بدون نقوصات]]-خورشيد_علي_عمر34[[#This Row],[التأمينات]]-خورشيد_علي_عمر34[[#This Row],[الغرامة]]-خورشيد_علي_عمر34[[#This Row],[سلفة مقبوضة]]-خورشيد_علي_عمر34[[#This Row],[دفعة عن القرض]]),\"\")","v":""}]
[8,null,null,null,null,null,null,null,null,null,null,null,null,{"$f":"IFERROR(SUM(خورشيد_علي_عمر34[[#This Row],[الراتب الأساسي]]/خورشيد_علي_عمر34[[#This Row],[أيام الشهر]]*خورشيد_علي_عمر34[[#This Row],[عدد أيام العمل]]+خورشيد_علي_عمر34[[#This Row],[الزيادة]]+خورشيد_علي_عمر34[[#This Row],[المكافأة]]-خورشيد_علي_عمر34[[#This Row],[التأمينات]]-خورشيد_علي_عمر34[[#This Row],[الغرامة]]),\"\")","v":""},null,null,null,{"$f":"IFERROR(SUM(خورشيد_علي_عمر34[[#This Row],[الراتب المستحق]]-خورشيد_علي_عمر34[[#This Row],[سلفة مقبوضة]]-خورشيد_علي_عمر34[[#This Row],[دفعة عن القرض]]),\"\")","v":""},null,null,null,null,null,null,{"$f":"IFERROR(SUM(خورشيد_علي_عمر34[[#This Row],[الراتب الأساسي]]/خورشيد_علي_عمر34[[#This Row],[أيام الشهر]]*خورشيد_علي_عمر34[[#This Row],[عدد أيام العمل]]+خورشيد_علي_عمر34[[#This Row],[الزيادة]]+خورشيد_علي_عمر34[[#This Row],[المكافأة]]+خورشيد_علي_عمر34[[#This Row],[نجم الشهر]]+خورشيد_علي_عمر34[[#This Row],[كارت اتصال]]+خورشيد_علي_عمر34[[#This Row],[تاركت شهري]]+خورشيد_علي_عمر34[[#This Row],[عمل إضافي]]+خورشيد_علي_عمر34[[#This Row],[وزن مخزن]]),\"\")","v":""},{"$f":"IFERROR(SUM(خورشيد_علي_عمر34[[#This Row],[كامل المستحق بدون نقوصات]]-خورشيد_علي_عمر34[[#This Row],[التأمينات]]-خورشيد_علي_عمر34[[#This Row],[الغرامة]]-خورشيد_علي_عمر34[[#This Row],[سلفة مقبوضة]]-خورشيد_علي_عمر34[[#This Row],[دفعة عن القرض]]),\"\")","v":""}]
[9,null,null,null,null,null,null,null,null,null,null,null,null,{"$f":"IFERROR(SUM(خورشيد_علي_عمر34[[#This Row],[الراتب الأساسي]]/خورشيد_علي_عمر34[[#This Row],[أيام الشهر]]*خورشيد_علي_عمر34[[#This Row],[عدد أيام العمل]]+خورشيد_علي_عمر34[[#This Row],[الزيادة]]+خورشيد_علي_عمر34[[#This Row],[المكافأة]]-خورشيد_علي_عمر34[[#This Row],[التأمينات]]-خورشيد_علي_عمر34[[#This Row],[الغرامة]]),\"\")","v":""},null,null,null,{"$f":"IFERROR(SUM(خورشيد_علي_عمر34[[#This Row],[الراتب المستحق]]-خورشيد_علي_عمر34[[#This Row],[سلفة مقبوضة]]-خورشيد_علي_عمر34[[#This Row],[دفعة عن القرض]]),\"\")","v":""},null,null,null,null,null,null,{"$f":"IFERROR(SUM(خورشيد_علي_عمر34[[#This Row],[الراتب الأساسي]]/خورشيد_علي_عمر34[[#This Row],[أيام الشهر]]*خورشيد_علي_عمر34[[#This Row],[عدد أيام العمل]]+خورشيد_علي_عمر34[[#This Row],[الزيادة]]+خورشيد_علي_عمر34[[#This Row],[المكافأة]]+خورشيد_علي_عمر34[[#This Row],[نجم الشهر]]+خورشيد_علي_عمر34[[#This Row],[كارت اتصال]]+خورشيد_علي_عمر34[[#This Row],[تاركت شهري]]+خورشيد_علي_عمر34[[#This Row],[عمل إضافي]]+خورشيد_علي_عمر34[[#This Row],[وزن مخزن]]),\"\")","v":""},{"$f":"IFERROR(SUM(خورشيد_علي_عمر34[[#This Row],[كامل المستحق بدون نقوصات]]-خورشيد_علي_عمر34[[#This Row],[التأمينات]]-خورشيد_علي_عمر34[[#This Row],[الغرامة]]-خورشيد_علي_عمر34[[#This Row],[سلفة مقبوضة]]-خورشيد_علي_عمر34[[#This Row],[دفعة عن القرض]]),\"\")","v":""}]
[10,null,null,null,null,null,null,null,null,null,null,null,null,{"$f":"IFERROR(SUM(خورشيد_علي_عمر34[[#This Row],[الراتب الأساسي]]/خورشيد_علي_عمر34[[#This Row],[أيام الشهر]]*خورشيد_علي_عمر34[[#This Row],[عدد أيام العمل]]+خورشيد_علي_عمر34[[#This Row],[الزيادة]]+خورشيد_علي_عمر34[[#This Row],[المكافأة]]-خورشيد_علي_عمر34[[#This Row],[التأمينات]]-خورشيد_علي_عمر34[[#This Row],[الغرامة]]),\"\")","v":""},null,null,null,{"$f":"IFERROR(SUM(خورشيد_علي_عمر34[[#This Row],[الراتب المستحق]]-خورشيد_علي_عمر34[[#This Row],[سلفة مقبوضة]]-خورشيد_علي_عمر34[[#This Row],[دفعة عن القرض]]),\"\")","v":""},null,null,null,null,null,null,{"$f":"IFERROR(SUM(خورشيد_علي_عمر34[[#This Row],[الراتب الأساسي]]/خورشيد_علي_عمر34[[#This Row],[أيام الشهر]]*خورشيد_علي_عمر34[[#This Row],[عدد أيام العمل]]+خورشيد_علي_عمر34[[#This Row],[الزيادة]]+خورشيد_علي_عمر34[[#This Row],[المكافأة]]+خورشيد_علي_عمر34[[#This Row],[نجم الشهر]]+خورشيد_علي_عمر34[[#This Row],[كارت اتصال]]+خورشيد_علي_عمر34[[#This Row],[تاركت شهري]]+خورشيد_علي_عمر34[[#This Row],[عمل إضافي]]+خورشيد_علي_عمر34[[#This Row],[وزن مخزن]]),\"\")","v":""},{"$f":"IFERROR(SUM(خورشيد_علي_عمر34[[#This Row],[كامل المستحق بدون نقوصات]]-خورشيد_علي_عمر34[[#This Row],[التأمينات]]-خورشيد_علي_عمر34[[#This Row],[الغرامة]]-خورشيد_علي_عمر34[[#This Row],[سلفة مقبوضة]]-خورشيد_علي_عمر34[[#This Row],[دفعة عن القرض]]),\"\")","v":""}]
[11,null,null,null,null,null,null,null,null,null,null,null,null,{"$f":"IFERROR(SUM(خورشيد_علي_عمر34[[#This Row],[الراتب الأساسي]]/خورشيد_علي_عمر34[[#This Row],[أيام الشهر]]*خورشيد_علي_عمر34[[#This Row],[عدد أيام العمل]]+خورشيد_علي_عمر34[[#This Row],[الزيادة]]+خورشيد_علي_عمر34[[#This Row],[المكافأة]]-خورشيد_علي_عمر34[[#This Row],[التأمينات]]-خورشيد_علي_عمر34[[#This Row],[الغرامة]]),\"\")","v":""},null,null,null,{"$f":"IFERROR(SUM(خورشيد_علي_عمر34[[#This Row],[الراتب المستحق]]-خورشيد_علي_عمر34[[#This Row],[سلفة مقبوضة]]-خورشيد_علي_عمر34[[#This Row],[دفعة عن القرض]]),\"\")","v":""},null,null,null,null,null,null,{"$f":"IFERROR(SUM(خورشيد_علي_عمر34[[#This Row],[الراتب الأساسي]]/خورشيد_علي_عمر34[[#This Row],[أيام الشهر]]*خورشيد_علي_عمر34[[#This Row],[عدد أيام العمل]]+خورشيد_علي_عمر34[[#This Row],[الزيادة]]+خورشيد_علي_عمر34[[#This Row],[المكافأة]]+خورشيد_علي_عمر34[[#This Row],[نجم الشهر]]+خورشيد_علي_عمر34[[#This Row],[كارت اتصال]]+خورشيد_علي_عمر34[[#This Row],[تاركت شهري]]+خورشيد_علي_عمر34[[#This Row],[عمل إضافي]]+خورشيد_علي_عمر34[[#This Row],[وزن مخزن]]),\"\")","v":""},{"$f":"IFERROR(SUM(خورشيد_علي_عمر34[[#This Row],[كامل المستحق بدون نقوصات]]-خورشيد_علي_عمر34[[#This Row],[التأمينات]]-خورشيد_علي_عمر34[[#This Row],[الغرامة]]-خورشيد_علي_عمر34[[#This Row],[سلفة مقبوضة]]-خورشيد_علي_عمر34[[#This Row],[دفعة عن القرض]]),\"\")","v":""}]
[12,null,null,null,null,null,null,null,null,null,null,null,null,{"$f":"IFERROR(SUM(خورشيد_علي_عمر34[[#This Row],[الراتب الأساسي]]/خورشيد_علي_عمر34[[#This Row],[أيام الشهر]]*خورشيد_علي_عمر34[[#This Row],[عدد أيام العمل]]+خورشيد_علي_عمر34[[#This Row],[الزيادة]]+خورشيد_علي_عمر34[[#This Row],[المكافأة]]-خورشيد_علي_عمر34[[#This Row],[التأمينات]]-خورشيد_علي_عمر34[[#This Row],[الغرامة]]),\"\")","v":""},null,null,null,{"$f":"IFERROR(SUM(خورشيد_علي_عمر34[[#This Row],[الراتب المستحق]]-خورشيد_علي_عمر34[[#This Row],[سلفة مقبوضة]]-خورشيد_علي_عمر34[[#This Row],[دفعة عن القرض]]),\"\")","v":""},null,null,null,null,null,null,{"$f":"IFERROR(SUM(خورشيد_علي_عمر34[[#This Row],[الراتب الأساسي]]/خورشيد_علي_عمر34[[#This Row],[أيام الشهر]]*خورشيد_علي_عمر34[[#This Row],[عدد أيام العمل]]+خورشيد_علي_عمر34[[#This Row],[الزيادة]]+خورشيد_علي_عمر34[[#This Row],[المكافأة]]+خورشيد_علي_عمر34[[#This Row],[نجم الشهر]]+خورشيد_علي_عمر34[[#This Row],[كارت اتصال]]+خورشيد_علي_عمر34[[#This Row],[تاركت شهري]]+خورشيد_علي_عمر34[[#This Row],[عمل إضافي]]+خورشيد_علي_عمر34[[#This Row],[وزن مخزن]]),\"\")","v":""},{"$f":"IFERROR(SUM(خورشيد_علي_عمر34[[#This Row],[كامل المستحق بدون نقوصات]]-خورشيد_علي_عمر34[[#This Row],[التأمينات]]-خورشيد_علي_عمر34[[#This Row],[الغرامة]]-خورشيد_علي_عمر34[[#This Row],[سلفة مقبوضة]]-خورشيد_علي_عمر34[[#This Row],[دفعة عن القرض]]),\"\")","v":""}]
[13,null,null,null,null,null,null,null,null,null,null,null,null,{"$f":"IFERROR(SUM(خورشيد_علي_عمر34[[#This Row],[الراتب الأساسي]]/خورشيد_علي_عمر34[[#This Row],[أيام الشهر]]*خورشيد_علي_عمر34[[#This Row],[عدد أيام العمل]]+خورشيد_علي_عمر34[[#This Row],[الزيادة]]+خورشيد_علي_عمر34[[#This Row],[المكافأة]]-خورشيد_علي_عمر34[[#This Row],[التأمينات]]-خورشيد_علي_عمر34[[#This Row],[الغرامة]]),\"\")","v":""},null,null,null,{"$f":"IFERROR(SUM(خورشيد_علي_عمر34[[#This Row],[الراتب المستحق]]-خورشيد_علي_عمر34[[#This Row],[سلفة مقبوضة]]-خورشيد_علي_عمر34[[#This Row],[دفعة عن القرض]]),\"\")","v":""},null,null,null,null,null,null,{"$f":"IFERROR(SUM(خورشيد_علي_عمر34[[#This Row],[الراتب الأساسي]]/خورشيد_علي_عمر34[[#This Row],[أيام الشهر]]*خورشيد_علي_عمر34[[#This Row],[عدد أيام العمل]]+خورشيد_علي_عمر34[[#This Row],[الزيادة]]+خورشيد_علي_عمر34[[#This Row],[المكافأة]]+خورشيد_علي_عمر34[[#This Row],[نجم الشهر]]+خورشيد_علي_عمر34[[#This Row],[كارت اتصال]]+خورشيد_علي_عمر34[[#This Row],[تاركت شهري]]+خورشيد_علي_عمر34[[#This Row],[عمل إضافي]]+خورشيد_علي_عمر34[[#This Row],[وزن مخزن]]),\"\")","v":""},{"$f":"IFERROR(SUM(خورشيد_علي_عمر34[[#This Row],[كامل المستحق بدون نقوصات]]-خورشيد_علي_عمر34[[#This Row],[التأمينات]]-خورشيد_علي_عمر34[[#This Row],[الغرامة]]-خورشيد_علي_عمر34[[#This Row],[سلفة مقبوضة]]-خورشيد_علي_عمر34[[#This Row],[دفعة عن القرض]]),\"\")","v":""}]
[1000,null,null,null,null,null,null,null,null,null,null,null,null,{"$f":"IFERROR(SUM(خورشيد_علي_عمر34[[#This Row],[الراتب الأساسي]]/خورشيد_علي_عمر34[[#This Row],[أيام الشهر]]*خورشيد_علي_عمر34[[#This Row],[عدد أيام العمل]]+خورشيد_علي_عمر34[[#This Row],[الزيادة]]+خورشيد_علي_عمر34[[#This Row],[المكافأة]]-خورشيد_علي_عمر34[[#This Row],[التأمينات]]-خورشيد_علي_عمر34[[#This Row],[الغرامة]]),\"\")","v":""},null,null,null,{"$f":"IFERROR(SUM(خورشيد_علي_عمر34[[#This Row],[الراتب المستحق]]-خورشيد_علي_عمر34[[#This Row],[سلفة مقبوضة]]-خورشيد_علي_عمر34[[#This Row],[دفعة عن القرض]]),\"\")","v":""},null,null,null,null,null,null,{"$f":"IFERROR(SUM(خورشيد_علي_عمر34[[#This Row],[الراتب الأساسي]]/خورشيد_علي_عمر34[[#This Row],[أيام الشهر]]*خورشيد_علي_عمر34[[#This Row],[عدد أيام العمل]]+خورشيد_علي_عمر34[[#This Row],[الزيادة]]+خورشيد_علي_عمر34[[#This Row],[المكافأة]]+خورشيد_علي_عمر34[[#This Row],[نجم الشهر]]+خورشيد_علي_عمر34[[#This Row],[كارت اتصال]]+خورشيد_علي_عمر34[[#This Row],[تاركت شهري]]+خورشيد_علي_عمر34[[#This Row],[عمل إضافي]]+خورشيد_علي_عمر34[[#This Row],[وزن مخزن]]),\"\")","v":""},{"$f":"IFERROR(SUM(خورشيد_علي_عمر34[[#This Row],[كامل المستحق بدون نقوصات]]-خورشيد_علي_عمر34[[#This Row],[التأمينات]]-خورشيد_علي_عمر34[[#This Row],[الغرامة]]-خورشيد_علي_عمر34[[#This Row],[سلفة مقبوضة]]-خورشيد_علي_عمر34[[#This Row],[دفعة عن القرض]]),\"\")","v":""}]
[null,null,null,null,{"$f":"SUBTOTAL(109,خورشيد_علي_عمر34[الراتب الأساسي])","v":3500000},null,null,{"$f":"SUBTOTAL(109,H5:H18)","v":125000},{"$f":"SUBTOTAL(109,I5:I18)","v":60000},null,{"$f":"SUBTOTAL(109,K5:K18)","v":35000},{"$f":"SUBTOTAL(109,L5:L18)","v":30000},null,{"$f":"SUBTOTAL(109,N5:N18)","v":3570000},75000,150000,800000,3345000,25000,0,0,0,{"$f":"SUBTOTAL(109,خورشيد_علي_عمر34[عمل إضافي])","v":0},{"$f":"SUBTOTAL(109,خورشيد_علي_عمر34[وزن مخزن])","v":0},null,{"$f":"SUBTOTAL(109,خورشيد_علي_عمر34[كامل المستلم الفعلي])","v":3370000}]

{"sheet":"4.2023","index":4,"n_rows":19,"n_cols":29,"rows_kept":19,"cut":false,"hidden":false,"merged":[]}
[]
[]
[]
["تسلسل","الاسم الثلاثي","القسم","المسمى الوظيفي","الراتب الأساسي","أيام الشهر","عدد أيام العمل","الزيادة","المكافأة","نوع المكافأة","التأمينات","الغرامة","نوع الغرامة","الراتب المستحق","سلفة مقبوضة","دفعة عن القرض","الباقي من القرض","الراتب المستلم الفعلي","نجم الشهر","كارت اتصال","تاركيت اسبوعي","تاركت شهري","عمل إضافي","وزن مخزن","كامل المستحق بدون نقوصات","كامل المستلم الفعلي","المباشرة","الاستقالة","الملاحظات"]
[1,"سامي","الإدارة","امين صندوق",1500000,30,29,25000,10000,"من الإدارة",10000,25000,"مرورية",{"$f":"IFERROR(SUM(خورشيد_علي_عمر345[[#This Row],[الراتب الأساسي]]/خورشيد_علي_عمر345[[#This Row],[أيام الشهر]]*خورشيد_علي_عمر345[[#This Row],[عدد أيام العمل]]+خورشيد_علي_عمر345[[#This Row],[الزيادة]]+خورشيد_علي_عمر345[[#This Row],[المكافأة]]-خورشيد_علي_عمر345[[#This Row],[التأمينات]]-خورشيد_علي_عمر345[[#This Row],[الغرامة]]),\"\")","v":1450000},50000,100000,600000,{"$f":"IFERROR(SUM(خورشيد_علي_عمر345[[#This Row],[الراتب المستحق]]-خورشيد_علي_عمر345[[#This Row],[سلفة مقبوضة]]-خورشيد_علي_عمر345[[#This Row],[دفعة عن القرض]]),\"\")","v":1300000},25000,null,null,null,null,null,{"$f":"IFERROR(SUM(خورشيد_علي_عمر345[[#This Row],[الراتب الأساسي]]/خورشيد_علي_عمر345[[#This Row],[أيام الشهر]]*خورشيد_علي_عمر345[[#This Row],[عدد أيام العمل]]+خورشيد_علي_عمر345[[#This Row],[الزيادة]]+خورشيد_علي_عمر345[[#This Row],[المكافأة]]+خورشيد_علي_عمر345[[#This Row],[نجم الشهر]]+خورشيد_علي_عمر345[[#This Row],[كارت اتصال]]+خورشيد_علي_عمر345[[#This Row],[تاركت شهري]]+خورشيد_علي_عمر345[[#This Row],[عمل إضافي]]+خورشيد_علي_عمر345[[#This Row],[وزن مخزن]]),\"\")","v":1510000},{"$f":"IFERROR(SUM(خورشيد_علي_عمر345[[#This Row],[كامل المستحق بدون نقوصات]]-خورشيد_علي_عمر345[[#This Row],[التأمينات]]-خورشيد_علي_عمر345[[#This Row],[الغرامة]]-خورشيد_علي_عمر345[[#This Row],[سلفة مقبوضة]]-خورشيد_علي_عمر345[[#This Row],[دفعة عن القرض]]),\"\")","v":1325000},"2023-01-01","2024-01-01","لا يوجد"]
[2,"كريم","الإدارة","مدير",2000000,30,30,100000,50000,"المدير",25000,5000,"مرورية",{"$f":"IFERROR(SUM(خورشيد_علي_عمر345[[#This Row],[الراتب الأساسي]]/خورشيد_علي_عمر345[[#This Row],[أيام الشهر]]*خورشيد_علي_عمر345[[#This Row],[عدد أيام العمل]]+خورشيد_علي_عمر345[[#This Row],[الزيادة]]+خورشيد_علي_عمر345[[#This Row],[المكافأة]]-خورشيد_علي_عمر345[[#This Row],[التأمينات]]-خورشيد_علي_عمر345[[#This Row],[الغرامة]]),\"\")","v":2120000},25000,50000,200000,{"$f":"IFERROR(SUM(خورشيد_علي_عمر345[[#This Row],[الراتب المستحق]]-خورشيد_علي_عمر345[[#This Row],[سلفة مقبوضة]]-خورشيد_علي_عمر345[[#This Row],[دفعة عن القرض]]),\"\")","v":2045000},null,null,null,null,null,null,{"$f":"IFERROR(SUM(خورشيد_علي_عمر345[[#This Row],[الراتب الأساسي]]/خورشيد_علي_عمر345[[#This Row],[أيام الشهر]]*خورشيد_علي_عمر345[[#This Row],[عدد أيام العمل]]+خورشيد_علي_عمر345[[#This Row],[الزيادة]]+خورشيد_علي_عمر345[[#This Row],[المكافأة]]+خورشيد_علي_عمر345[[#This Row],[نجم الشهر]]+خورشيد_علي_عمر345[[#This Row],[كارت اتصال]]+خورشيد_علي_عمر345[[#This Row],[تاركت شهري]]+خورشيد_علي_عمر345[[#This Row],[عمل إضافي]]+خورشيد_علي_عمر345[[#This Row],[وزن مخزن]]),\"\")","v":2150000},{"$f":"IFERROR(SUM(خورشيد_علي_عمر345[[#This Row],[كامل المستحق بدون نقوصات]]-خورشيد_علي_عمر345[[#This Row],[التأمينات]]-خورشيد_علي_عمر345[[#This Row],[الغرامة]]-خورشيد_علي_عمر345[[#This Row],[سلفة مقبوضة]]-خورشيد_علي_عمر345[[#This Row],[دفعة عن القرض]]),\"\")","v":2045000},"2022-01-01","2025-01-01"]
[3,null,null,null,null,null,null,null,null,null,null,null,null,{"$f":"IFERROR(SUM(خورشيد_علي_عمر345[[#This Row],[الراتب الأساسي]]/خورشيد_علي_عمر345[[#This Row],[أيام الشهر]]*خورشيد_علي_عمر345[[#This Row],[عدد أيام العمل]]+خورشيد_علي_عمر345[[#This Row],[الزيادة]]+خورشيد_علي_عمر345[[#This Row],[المكافأة]]-خورشيد_علي_عمر345[[#This Row],[التأمينات]]-خورشيد_علي_عمر345[[#This Row],[الغرامة]]),\"\")","v":""},null,null,null,{"$f":"IFERROR(SUM(خورشيد_علي_عمر345[[#This Row],[الراتب المستحق]]-خورشيد_علي_عمر345[[#This Row],[سلفة مقبوضة]]-خورشيد_علي_عمر345[[#This Row],[دفعة عن القرض]]),\"\")","v":""},null,null,null,null,null,null,{"$f":"IFERROR(SUM(خورشيد_علي_عمر345[[#This Row],[الراتب الأساسي]]/خورشيد_علي_عمر345[[#This Row],[أيام الشهر]]*خورشيد_علي_عمر345[[#This Row],[عدد أيام العمل]]+خورشيد_علي_عمر345[[#This Row],[الزيادة]]+خورشيد_علي_عمر345[[#This Row],[المكافأة]]+خورشيد_علي_عمر345[[#This Row],[نجم الشهر]]+خورشيد_علي_عمر345[[#This Row],[كارت اتصال]]+خورشيد_علي_عمر345[[#This Row],[تاركت شهري]]+خورشيد_علي_عمر345[[#This Row],[عمل إضافي]]+خورشيد_علي_عمر345[[#This Row],[وزن مخزن]]),\"\")","v":""},{"$f":"IFERROR(SUM(خورشيد_علي_عمر345[[#This Row],[كامل المستحق بدون نقوصات]]-خورشيد_علي_عمر345[[#This Row],[التأمينات]]-خورشيد_علي_عمر345[[#This Row],[الغرامة]]-خورشيد_علي_عمر345[[#This Row],[سلفة مقبوضة]]-خورشيد_علي_عمر345[[#This Row],[دفعة عن القرض]]),\"\")","v":""}]
[4,null,null,null,null,null,null,null,null,null,null,null,null,{"$f":"IFERROR(SUM(خورشيد_علي_عمر345[[#This Row],[الراتب الأساسي]]/خورشيد_علي_عمر345[[#This Row],[أيام الشهر]]*خورشيد_علي_عمر345[[#This Row],[عدد أيام العمل]]+خورشيد_علي_عمر345[[#This Row],[الزيادة]]+خورشيد_علي_عمر345[[#This Row],[المكافأة]]-خورشيد_علي_عمر345[[#This Row],[التأمينات]]-خورشيد_علي_عمر345[[#This Row],[الغرامة]]),\"\")","v":""},null,null,null,{"$f":"IFERROR(SUM(خورشيد_علي_عمر345[[#This Row],[الراتب المستحق]]-خورشيد_علي_عمر345[[#This Row],[سلفة مقبوضة]]-خورشيد_علي_عمر345[[#This Row],[دفعة عن القرض]]),\"\")","v":""},null,null,null,null,null,null,{"$f":"IFERROR(SUM(خورشيد_علي_عمر345[[#This Row],[الراتب الأساسي]]/خورشيد_علي_عمر345[[#This Row],[أيام الشهر]]*خورشيد_علي_عمر345[[#This Row],[عدد أيام العمل]]+خورشيد_علي_عمر345[[#This Row],[الزيادة]]+خورشيد_علي_عمر345[[#This Row],[المكافأة]]+خورشيد_علي_عمر345[[#This Row],[نجم الشهر]]+خورشيد_علي_عمر345[[#This Row],[كارت اتصال]]+خورشيد_علي_عمر345[[#This Row],[تاركت شهري]]+خورشيد_علي_عمر345[[#This Row],[عمل إضافي]]+خورشيد_علي_عمر345[[#This Row],[وزن مخزن]]),\"\")","v":""},{"$f":"IFERROR(SUM(خورشيد_علي_عمر345[[#This Row],[كامل المستحق بدون نقوصات]]-خورشيد_علي_عمر345[[#This Row],[التأمينات]]-خورشيد_علي_عمر345[[#This Row],[الغرامة]]-خورشيد_علي_عمر345[[#This Row],[سلفة مقبوضة]]-خورشيد_علي_عمر345[[#This Row],[دفعة عن القرض]]),\"\")","v":""}]
[5,null,null,null,null,null,null,null,null,null,null,null,null,{"$f":"IFERROR(SUM(خورشيد_علي_عمر345[[#This Row],[الراتب الأساسي]]/خورشيد_علي_عمر345[[#This Row],[أيام الشهر]]*خورشيد_علي_عمر345[[#This Row],[عدد أيام العمل]]+خورشيد_علي_عمر345[[#This Row],[الزيادة]]+خورشيد_علي_عمر345[[#This Row],[المكافأة]]-خورشيد_علي_عمر345[[#This Row],[التأمينات]]-خورشيد_علي_عمر345[[#This Row],[الغرامة]]),\"\")","v":""},null,null,null,{"$f":"IFERROR(SUM(خورشيد_علي_عمر345[[#This Row],[الراتب المستحق]]-خورشيد_علي_عمر345[[#This Row],[سلفة مقبوضة]]-خورشيد_علي_عمر345[[#This Row],[دفعة عن القرض]]),\"\")","v":""},null,null,null,null,null,null,{"$f":"IFERROR(SUM(خورشيد_علي_عمر345[[#This Row],[الراتب الأساسي]]/خورشيد_علي_عمر345[[#This Row],[أيام الشهر]]*خورشيد_علي_عمر345[[#This Row],[عدد أيام العمل]]+خورشيد_علي_عمر345[[#This Row],[الزيادة]]+خورشيد_علي_عمر345[[#This Row],[المكافأة]]+خورشيد_علي_عمر345[[#This Row],[نجم الشهر]]+خورشيد_علي_عمر345[[#This Row],[كارت اتصال]]+خورشيد_علي_عمر345[[#This Row],[تاركت شهري]]+خورشيد_علي_عمر345[[#This Row],[عمل إضافي]]+خورشيد_علي_عمر345[[#This Row],[وزن مخزن]]),\"\")","v":""},{"$f":"IFERROR(SUM(خورشيد_علي_عمر345[[#This Row],[كامل المستحق بدون نقوصات]]-خورشيد_علي_عمر345[[#This Row],[التأمينات]]-خورشيد_علي_عمر345[[#This Row],[الغرامة]]-خورشيد_علي_عمر345[[#This Row],[سلفة مقبوضة]]-خورشيد_علي_عمر345[[#This Row],[دفعة عن القرض]]),\"\")","v":""}]
[6,null,null,null,null,null,null,null,null,null,null,null,null,{"$f":"IFERROR(SUM(خورشيد_علي_عمر345[[#This Row],[الراتب الأساسي]]/خورشيد_علي_عمر345[[#This Row],[أيام الشهر]]*خورشيد_علي_عمر345[[#This Row],[عدد أيام العمل]]+خورشيد_علي_عمر345[[#This Row],[الزيادة]]+خورشيد_علي_عمر345[[#This Row],[المكافأة]]-خورشيد_علي_عمر345[[#This Row],[التأمينات]]-خورشيد_علي_عمر345[[#This Row],[الغرامة]]),\"\")","v":""},null,null,null,{"$f":"IFERROR(SUM(خورشيد_علي_عمر345[[#This Row],[الراتب المستحق]]-خورشيد_علي_عمر345[[#This Row],[سلفة مقبوضة]]-خورشيد_علي_عمر345[[#This Row],[دفعة عن القرض]]),\"\")","v":""},null,null,null,null,null,null,{"$f":"IFERROR(SUM(خورشيد_علي_عمر345[[#This Row],[الراتب الأساسي]]/خورشيد_علي_عمر345[[#This Row],[أيام الشهر]]*خورشيد_علي_عمر345[[#This Row],[عدد أيام العمل]]+خورشيد_علي_عمر345[[#This Row],[الزيادة]]+خورشيد_علي_عمر345[[#This Row],[المكافأة]]+خورشيد_علي_عمر345[[#This Row],[نجم الشهر]]+خورشيد_علي_عمر345[[#This Row],[كارت اتصال]]+خورشيد_علي_عمر345[[#This Row],[تاركت شهري]]+خورشيد_علي_عمر345[[#This Row],[عمل إضافي]]+خورشيد_علي_عمر345[[#This Row],[وزن مخزن]]),\"\")","v":""},{"$f":"IFERROR(SUM(خورشيد_علي_عمر345[[#This Row],[كامل المستحق بدون نقوصات]]-خورشيد_علي_عمر345[[#This Row],[التأمينات]]-خورشيد_علي_عمر345[[#This Row],[الغرامة]]-خورشيد_علي_عمر345[[#This Row],[سلفة مقبوضة]]-خورشيد_علي_عمر345[[#This Row],[دفعة عن القرض]]),\"\")","v":""}]
[7,null,null,null,null,null,null,null,null,null,null,null,null,{"$f":"IFERROR(SUM(خورشيد_علي_عمر345[[#This Row],[الراتب الأساسي]]/خورشيد_علي_عمر345[[#This Row],[أيام الشهر]]*خورشيد_علي_عمر345[[#This Row],[عدد أيام العمل]]+خورشيد_علي_عمر345[[#This Row],[الزيادة]]+خورشيد_علي_عمر345[[#This Row],[المكافأة]]-خورشيد_علي_عمر345[[#This Row],[التأمينات]]-خورشيد_علي_عمر345[[#This Row],[الغرامة]]),\"\")","v":""},null,null,null,{"$f":"IFERROR(SUM(خورشيد_علي_عمر345[[#This Row],[الراتب المستحق]]-خورشيد_علي_عمر345[[#This Row],[سلفة مقبوضة]]-خورشيد_علي_عمر345[[#This Row],[دفعة عن القرض]]),\"\")","v":""},null,null,null,null,null,null,{"$f":"IFERROR(SUM(خورشيد_علي_عمر345[[#This Row],[الراتب الأساسي]]/خورشيد_علي_عمر345[[#This Row],[أيام الشهر]]*خورشيد_علي_عمر345[[#This Row],[عدد أيام العمل]]+خورشيد_علي_عمر345[[#This Row],[الزيادة]]+خورشيد_علي_عمر345[[#This Row],[المكافأة]]+خورشيد_علي_عمر345[[#This Row],[نجم الشهر]]+خورشيد_علي_عمر345[[#This Row],[كارت اتصال]]+خورشيد_علي_عمر345[[#This Row],[تاركت شهري]]+خورشيد_علي_عمر345[[#This Row],[عمل إضافي]]+خورشيد_علي_عمر345[[#This Row],[وزن مخزن]]),\"\")","v":""},{"$f":"IFERROR(SUM(خورشيد_علي_عمر345[[#This Row],[كامل المستحق بدون نقوصات]]-خورشيد_علي_عمر345[[#This Row],[التأمينات]]-خورشيد_علي_عمر345[[#This Row],[الغرامة]]-خورشيد_علي_عمر345[[#This Row],[سلفة مقبوضة]]-خورشيد_علي_عمر345[[#This Row],[دفعة عن القرض]]),\"\")","v":""}]
[8,null,null,null,null,null,null,null,null,null,null,null,null,{"$f":"IFERROR(SUM(خورشيد_علي_عمر345[[#This Row],[الراتب الأساسي]]/خورشيد_علي_عمر345[[#This Row],[أيام الشهر]]*خورشيد_علي_عمر345[[#This Row],[عدد أيام العمل]]+خورشيد_علي_عمر345[[#This Row],[الزيادة]]+خورشيد_علي_عمر345[[#This Row],[المكافأة]]-خورشيد_علي_عمر345[[#This Row],[التأمينات]]-خورشيد_علي_عمر345[[#This Row],[الغرامة]]),\"\")","v":""},null,null,null,{"$f":"IFERROR(SUM(خورشيد_علي_عمر345[[#This Row],[الراتب المستحق]]-خورشيد_علي_عمر345[[#This Row],[سلفة مقبوضة]]-خورشيد_علي_عمر345[[#This Row],[دفعة عن القرض]]),\"\")","v":""},null,null,null,null,null,null,{"$f":"IFERROR(SUM(خورشيد_علي_عمر345[[#This Row],[الراتب الأساسي]]/خورشيد_علي_عمر345[[#This Row],[أيام الشهر]]*خورشيد_علي_عمر345[[#This Row],[عدد أيام العمل]]+خورشيد_علي_عمر345[[#This Row],[الزيادة]]+خورشيد_علي_عمر345[[#This Row],[المكافأة]]+خورشيد_علي_عمر345[[#This Row],[نجم الشهر]]+خورشيد_علي_عمر345[[#This Row],[كارت اتصال]]+خورشيد_علي_عمر345[[#This Row],[تاركت شهري]]+خورشيد_علي_عمر345[[#This Row],[عمل إضافي]]+خورشيد_علي_عمر345[[#This Row],[وزن مخزن]]),\"\")","v":""},{"$f":"IFERROR(SUM(خورشيد_علي_عمر345[[#This Row],[كامل المستحق بدون نقوصات]]-خورشيد_علي_عمر345[[#This Row],[التأمينات]]-خورشيد_علي_عمر345[[#This Row],[الغرامة]]-خورشيد_علي_عمر345[[#This Row],[سلفة مقبوضة]]-خورشيد_علي_عمر345[[#This Row],[دفعة عن القرض]]),\"\")","v":""}]
[9,null,null,null,null,null,null,null,null,null,null,null,null,{"$f":"IFERROR(SUM(خورشيد_علي_عمر345[[#This Row],[الراتب الأساسي]]/خورشيد_علي_عمر345[[#This Row],[أيام الشهر]]*خورشيد_علي_عمر345[[#This Row],[عدد أيام العمل]]+خورشيد_علي_عمر345[[#This Row],[الزيادة]]+خورشيد_علي_عمر345[[#This Row],[المكافأة]]-خورشيد_علي_عمر345[[#This Row],[التأمينات]]-خورشيد_علي_عمر345[[#This Row],[الغرامة]]),\"\")","v":""},null,null,null,{"$f":"IFERROR(SUM(خورشيد_علي_عمر345[[#This Row],[الراتب المستحق]]-خورشيد_علي_عمر345[[#This Row],[سلفة مقبوضة]]-خورشيد_علي_عمر345[[#This Row],[دفعة عن القرض]]),\"\")","v":""},null,null,null,null,null,null,{"$f":"IFERROR(SUM(خورشيد_علي_عمر345[[#This Row],[الراتب الأساسي]]/خورشيد_علي_عمر345[[#This Row],[أيام الشهر]]*خورشيد_علي_عمر345[[#This Row],[عدد أيام العمل]]+خورشيد_علي_عمر345[[#This Row],[الزيادة]]+خورشيد_علي_عمر345[[#This Row],[المكافأة]]+خورشيد_علي_عمر345[[#This Row],[نجم الشهر]]+خورشيد_علي_عمر345[[#This Row],[كارت اتصال]]+خورشيد_علي_عمر345[[#This Row],[تاركت شهري]]+خورشيد_علي_عمر345[[#This Row],[عمل إضافي]]+خورشيد_علي_عمر345[[#This Row],[وزن مخزن]]),\"\")","v":""},{"$f":"IFERROR(SUM(خورشيد_علي_عمر345[[#This Row],[كامل المستحق بدون نقوصات]]-خورشيد_علي_عمر345[[#This Row],[التأمينات]]-خورشيد_علي_عمر345[[#This Row],[الغرامة]]-خورشيد_علي_عمر345[[#This Row],[سلفة مقبوضة]]-خورشيد_علي_عمر345[[#This Row],[دفعة عن القرض]]),\"\")","v":""}]
[10,null,null,null,null,null,null,null,null,null,null,null,null,{"$f":"IFERROR(SUM(خورشيد_علي_عمر345[[#This Row],[الراتب الأساسي]]/خورشيد_علي_عمر345[[#This Row],[أيام الشهر]]*خورشيد_علي_عمر345[[#This Row],[عدد أيام العمل]]+خورشيد_علي_عمر345[[#This Row],[الزيادة]]+خورشيد_علي_عمر345[[#This Row],[المكافأة]]-خورشيد_علي_عمر345[[#This Row],[التأمينات]]-خورشيد_علي_عمر345[[#This Row],[الغرامة]]),\"\")","v":""},null,null,null,{"$f":"IFERROR(SUM(خورشيد_علي_عمر345[[#This Row],[الراتب المستحق]]-خورشيد_علي_عمر345[[#This Row],[سلفة مقبوضة]]-خورشيد_علي_عمر345[[#This Row],[دفعة عن القرض]]),\"\")","v":""},null,null,null,null,null,null,{"$f":"IFERROR(SUM(خورشيد_علي_عمر345[[#This Row],[الراتب الأساسي]]/خورشيد_علي_عمر345[[#This Row],[أيام الشهر]]*خورشيد_علي_عمر345[[#This Row],[عدد أيام العمل]]+خورشيد_علي_عمر345[[#This Row],[الزيادة]]+خورشيد_علي_عمر345[[#This Row],[المكافأة]]+خورشيد_علي_عمر345[[#This Row],[نجم الشهر]]+خورشيد_علي_عمر345[[#This Row],[كارت اتصال]]+خورشيد_علي_عمر345[[#This Row],[تاركت شهري]]+خورشيد_علي_عمر345[[#This Row],[عمل إضافي]]+خورشيد_علي_عمر345[[#This Row],[وزن مخزن]]),\"\")","v":""},{"$f":"IFERROR(SUM(خورشيد_علي_عمر345[[#This Row],[كامل المستحق بدون نقوصات]]-خورشيد_علي_عمر345[[#This Row],[التأمينات]]-خورشيد_علي_عمر345[[#This Row],[الغرامة]]-خورشيد_علي_عمر345[[#This Row],[سلفة مقبوضة]]-خورشيد_علي_عمر345[[#This Row],[دفعة عن القرض]]),\"\")","v":""}]
[11,null,null,null,null,null,null,null,null,null,null,null,null,{"$f":"IFERROR(SUM(خورشيد_علي_عمر345[[#This Row],[الراتب الأساسي]]/خورشيد_علي_عمر345[[#This Row],[أيام الشهر]]*خورشيد_علي_عمر345[[#This Row],[عدد أيام العمل]]+خورشيد_علي_عمر345[[#This Row],[الزيادة]]+خورشيد_علي_عمر345[[#This Row],[المكافأة]]-خورشيد_علي_عمر345[[#This Row],[التأمينات]]-خورشيد_علي_عمر345[[#This Row],[الغرامة]]),\"\")","v":""},null,null,null,{"$f":"IFERROR(SUM(خورشيد_علي_عمر345[[#This Row],[الراتب المستحق]]-خورشيد_علي_عمر345[[#This Row],[سلفة مقبوضة]]-خورشيد_علي_عمر345[[#This Row],[دفعة عن القرض]]),\"\")","v":""},null,null,null,null,null,null,{"$f":"IFERROR(SUM(خورشيد_علي_عمر345[[#This Row],[الراتب الأساسي]]/خورشيد_علي_عمر345[[#This Row],[أيام الشهر]]*خورشيد_علي_عمر345[[#This Row],[عدد أيام العمل]]+خورشيد_علي_عمر345[[#This Row],[الزيادة]]+خورشيد_علي_عمر345[[#This Row],[المكافأة]]+خورشيد_علي_عمر345[[#This Row],[نجم الشهر]]+خورشيد_علي_عمر345[[#This Row],[كارت اتصال]]+خورشيد_علي_عمر345[[#This Row],[تاركت شهري]]+خورشيد_علي_عمر345[[#This Row],[عمل إضافي]]+خورشيد_علي_عمر345[[#This Row],[وزن مخزن]]),\"\")","v":""},{"$f":"IFERROR(SUM(خورشيد_علي_عمر345[[#This Row],[كامل المستحق بدون نقوصات]]-خورشيد_علي_عمر345[[#This Row],[التأمينات]]-خورشيد_علي_عمر345[[#This Row],[الغرامة]]-خورشيد_علي_عمر345[[#This Row],[سلفة مقبوضة]]-خورشيد_علي_عمر345[[#This Row],[دفعة عن القرض]]),\"\")","v":""}]
[12,null,null,null,null,null,null,null,null,null,null,null,null,{"$f":"IFERROR(SUM(خورشيد_علي_عمر345[[#This Row],[الراتب الأساسي]]/خورشيد_علي_عمر345[[#This Row],[أيام الشهر]]*خورشيد_علي_عمر345[[#This Row],[عدد أيام العمل]]+خورشيد_علي_عمر345[[#This Row],[الزيادة]]+خورشيد_علي_عمر345[[#This Row],[المكافأة]]-خورشيد_علي_عمر345[[#This Row],[التأمينات]]-خورشيد_علي_عمر345[[#This Row],[الغرامة]]),\"\")","v":""},null,null,null,{"$f":"IFERROR(SUM(خورشيد_علي_عمر345[[#This Row],[الراتب المستحق]]-خورشيد_علي_عمر345[[#This Row],[سلفة مقبوضة]]-خورشيد_علي_عمر345[[#This Row],[دفعة عن القرض]]),\"\")","v":""},null,null,null,null,null,null,{"$f":"IFERROR(SUM(خورشيد_علي_عمر345[[#This Row],[الراتب الأساسي]]/خورشيد_علي_عمر345[[#This Row],[أيام الشهر]]*خورشيد_علي_عمر345[[#This Row],[عدد أيام العمل]]+خورشيد_علي_عمر345[[#This Row],[الزيادة]]+خورشيد_علي_عمر345[[#This Row],[المكافأة]]+خورشيد_علي_عمر345[[#This Row],[نجم الشهر]]+خورشيد_علي_عمر345[[#This Row],[كارت اتصال]]+خورشيد_علي_عمر345[[#This Row],[تاركت شهري]]+خورشيد_علي_عمر345[[#This Row],[عمل إضافي]]+خورشيد_علي_عمر345[[#This Row],[وزن مخزن]]),\"\")","v":""},{"$f":"IFERROR(SUM(خورشيد_علي_عمر345[[#This Row],[كامل المستحق بدون نقوصات]]-خورشيد_علي_عمر345[[#This Row],[التأمينات]]-خورشيد_علي_عمر345[[#This Row],[الغرامة]]-خورشيد_علي_عمر345[[#This Row],[سلفة مقبوضة]]-خورشيد_علي_عمر345[[#This Row],[دفعة عن القرض]]),\"\")","v":""}]
[13,null,null,null,null,null,null,null,null,null,null,null,null,{"$f":"IFERROR(SUM(خورشيد_علي_عمر345[[#This Row],[الراتب الأساسي]]/خورشيد_علي_عمر345[[#This Row],[أيام الشهر]]*خورشيد_علي_عمر345[[#This Row],[عدد أيام العمل]]+خورشيد_علي_عمر345[[#This Row],[الزيادة]]+خورشيد_علي_عمر345[[#This Row],[المكافأة]]-خورشيد_علي_عمر345[[#This Row],[التأمينات]]-خورشيد_علي_عمر345[[#This Row],[الغرامة]]),\"\")","v":""},null,null,null,{"$f":"IFERROR(SUM(خورشيد_علي_عمر345[[#This Row],[الراتب المستحق]]-خورشيد_علي_عمر345[[#This Row],[سلفة مقبوضة]]-خورشيد_علي_عمر345[[#This Row],[دفعة عن القرض]]),\"\")","v":""},null,null,null,null,null,null,{"$f":"IFERROR(SUM(خورشيد_علي_عمر345[[#This Row],[الراتب الأساسي]]/خورشيد_علي_عمر345[[#This Row],[أيام الشهر]]*خورشيد_علي_عمر345[[#This Row],[عدد أيام العمل]]+خورشيد_علي_عمر345[[#This Row],[الزيادة]]+خورشيد_علي_عمر345[[#This Row],[المكافأة]]+خورشيد_علي_عمر345[[#This Row],[نجم الشهر]]+خورشيد_علي_عمر345[[#This Row],[كارت اتصال]]+خورشيد_علي_عمر345[[#This Row],[تاركت شهري]]+خورشيد_علي_عمر345[[#This Row],[عمل إضافي]]+خورشيد_علي_عمر345[[#This Row],[وزن مخزن]]),\"\")","v":""},{"$f":"IFERROR(SUM(خورشيد_علي_عمر345[[#This Row],[كامل المستحق بدون نقوصات]]-خورشيد_علي_عمر345[[#This Row],[التأمينات]]-خورشيد_علي_عمر345[[#This Row],[الغرامة]]-خورشيد_علي_عمر345[[#This Row],[سلفة مقبوضة]]-خورشيد_علي_عمر345[[#This Row],[دفعة عن القرض]]),\"\")","v":""}]
[1000,null,null,null,null,null,null,null,null,null,null,null,null,{"$f":"IFERROR(SUM(خورشيد_علي_عمر345[[#This Row],[الراتب الأساسي]]/خورشيد_علي_عمر345[[#This Row],[أيام الشهر]]*خورشيد_علي_عمر345[[#This Row],[عدد أيام العمل]]+خورشيد_علي_عمر345[[#This Row],[الزيادة]]+خورشيد_علي_عمر345[[#This Row],[المكافأة]]-خورشيد_علي_عمر345[[#This Row],[التأمينات]]-خورشيد_علي_عمر345[[#This Row],[الغرامة]]),\"\")","v":""},null,null,null,{"$f":"IFERROR(SUM(خورشيد_علي_عمر345[[#This Row],[الراتب المستحق]]-خورشيد_علي_عمر345[[#This Row],[سلفة مقبوضة]]-خورشيد_علي_عمر345[[#This Row],[دفعة عن القرض]]),\"\")","v":""},null,null,null,null,null,null,{"$f":"IFERROR(SUM(خورشيد_علي_عمر345[[#This Row],[الراتب الأساسي]]/خورشيد_علي_عمر345[[#This Row],[أيام الشهر]]*خورشيد_علي_عمر345[[#This Row],[عدد أيام العمل]]+خورشيد_علي_عمر345[[#This Row],[الزيادة]]+خورشيد_علي_عمر345[[#This Row],[المكافأة]]+خورشيد_علي_عمر345[[#This Row],[نجم الشهر]]+خورشيد_علي_عمر345[[#This Row],[كارت اتصال]]+خورشيد_علي_عمر345[[#This Row],[تاركت شهري]]+خورشيد_علي_عمر345[[#This Row],[عمل إضافي]]+خورشيد_علي_عمر345[[#This Row],[وزن مخزن]]),\"\")","v":""},{"$f":"IFERROR(SUM(خورشيد_علي_عمر345[[#This Row],[كامل المستحق بدون نقوصات]]-خورشيد_علي_عمر345[[#This Row],[التأمينات]]-خورشيد_علي_عمر345[[#This Row],[الغرامة]]-خورشيد_علي_عمر345[[#This Row],[سلفة مقبوضة]]-خورشيد_علي_عمر345[[#This Row],[دفعة عن القرض]]),\"\")","v":""}]
[null,null,null,null,{"$f":"SUBTOTAL(109,خورشيد_علي_عمر345[الراتب الأساسي])","v":3500000},null,null,{"$f":"SUBTOTAL(109,H5:H18)","v":125000},{"$f":"SUBTOTAL(109,I5:I18)","v":60000},null,{"$f":"SUBTOTAL(109,K5:K18)","v":35000},{"$f":"SUBTOTAL(109,L5:L18)","v":30000},null,{"$f":"SUBTOTAL(109,N5:N18)","v":3570000},75000,150000,800000,3345000,25000,0,0,0,{"$f":"SUBTOTAL(109,خورشيد_علي_عمر345[عمل إضافي])","v":0},{"$f":"SUBTOTAL(109,خورشيد_علي_عمر345[وزن مخزن])","v":0},null,{"$f":"SUBTOTAL(109,خورشيد_علي_عمر345[كامل المستلم الفعلي])","v":3370000}]

{"sheet":"5.2023","index":5,"n_rows":19,"n_cols":29,"rows_kept":19,"cut":false,"hidden":false,"merged":[]}
[]
[]
[]
["تسلسل","الاسم الثلاثي","القسم","المسمى الوظيفي","الراتب الأساسي","أيام الشهر","عدد أيام العمل","الزيادة","المكافأة","نوع المكافأة","التأمينات","الغرامة","نوع الغرامة","الراتب المستحق","سلفة مقبوضة","دفعة عن القرض","الباقي من القرض","الراتب المستلم الفعلي","نجم الشهر","كارت اتصال","تاركيت اسبوعي","تاركت شهري","عمل إضافي","وزن مخزن","كامل المستحق بدون نقوصات","كامل المستلم الفعلي","المباشرة","الاستقالة","الملاحظات"]
[1,"سامي","الإدارة","امين صندوق",1500000,30,29,25000,10000,"من الإدارة",10000,25000,"مرورية",{"$f":"IFERROR(SUM(خورشيد_علي_عمر3456[[#This Row],[الراتب الأساسي]]/خورشيد_علي_عمر3456[[#This Row],[أيام الشهر]]*خورشيد_علي_عمر3456[[#This Row],[عدد أيام العمل]]+خورشيد_علي_عمر3456[[#This Row],[الزيادة]]+خورشيد_علي_عمر3456[[#This Row],[المكافأة]]-خورشيد_علي_عمر3456[[#This Row],[التأمينات]]-خورشيد_علي_عمر3456[[#This Row],[الغرامة]]),\"\")","v":1450000},50000,100000,600000,{"$f":"IFERROR(SUM(خورشيد_علي_عمر3456[[#This Row],[الراتب المستحق]]-خورشيد_علي_عمر3456[[#This Row],[سلفة مقبوضة]]-خورشيد_علي_عمر3456[[#This Row],[دفعة عن القرض]]),\"\")","v":1300000},25000,null,null,null,null,null,{"$f":"IFERROR(SUM(خورشيد_علي_عمر3456[[#This Row],[الراتب الأساسي]]/خورشيد_علي_عمر3456[[#This Row],[أيام الشهر]]*خورشيد_علي_عمر3456[[#This Row],[عدد أيام العمل]]+خورشيد_علي_عمر3456[[#This Row],[الزيادة]]+خورشيد_علي_عمر3456[[#This Row],[المكافأة]]+خورشيد_علي_عمر3456[[#This Row],[نجم الشهر]]+خورشيد_علي_عمر3456[[#This Row],[كارت اتصال]]+خورشيد_علي_عمر3456[[#This Row],[تاركت شهري]]+خورشيد_علي_عمر3456[[#This Row],[عمل إضافي]]+خورشيد_علي_عمر3456[[#This Row],[وزن مخزن]]),\"\")","v":1510000},{"$f":"IFERROR(SUM(خورشيد_علي_عمر3456[[#This Row],[كامل المستحق بدون نقوصات]]-خورشيد_علي_عمر3456[[#This Row],[التأمينات]]-خورشيد_علي_عمر3456[[#This Row],[الغرامة]]-خورشيد_علي_عمر3456[[#This Row],[سلفة مقبوضة]]-خورشيد_علي_عمر3456[[#This Row],[دفعة عن القرض]]),\"\")","v":1325000},"2023-01-01","2024-01-01","لا يوجد"]
[2,"كريم","الإدارة","مدير",2000000,30,30,100000,50000,"المدير",25000,5000,"مرورية",{"$f":"IFERROR(SUM(خورشيد_علي_عمر3456[[#This Row],[الراتب الأساسي]]/خورشيد_علي_عمر3456[[#This Row],[أيام الشهر]]*خورشيد_علي_عمر3456[[#This Row],[عدد أيام العمل]]+خورشيد_علي_عمر3456[[#This Row],[الزيادة]]+خورشيد_علي_عمر3456[[#This Row],[المكافأة]]-خورشيد_علي_عمر3456[[#This Row],[التأمينات]]-خورشيد_علي_عمر3456[[#This Row],[الغرامة]]),\"\")","v":2120000},25000,50000,200000,{"$f":"IFERROR(SUM(خورشيد_علي_عمر3456[[#This Row],[الراتب المستحق]]-خورشيد_علي_عمر3456[[#This Row],[سلفة مقبوضة]]-خورشيد_علي_عمر3456[[#This Row],[دفعة عن القرض]]),\"\")","v":2045000},null,null,null,null,null,null,{"$f":"IFERROR(SUM(خورشيد_علي_عمر3456[[#This Row],[الراتب الأساسي]]/خورشيد_علي_عمر3456[[#This Row],[أيام الشهر]]*خورشيد_علي_عمر3456[[#This Row],[عدد أيام العمل]]+خورشيد_علي_عمر3456[[#This Row],[الزيادة]]+خورشيد_علي_عمر3456[[#This Row],[المكافأة]]+خورشيد_علي_عمر3456[[#This Row],[نجم الشهر]]+خورشيد_علي_عمر3456[[#This Row],[كارت اتصال]]+خورشيد_علي_عمر3456[[#This Row],[تاركت شهري]]+خورشيد_علي_عمر3456[[#This Row],[عمل إضافي]]+خورشيد_علي_عمر3456[[#This Row],[وزن مخزن]]),\"\")","v":2150000},{"$f":"IFERROR(SUM(خورشيد_علي_عمر3456[[#This Row],[كامل المستحق بدون نقوصات]]-خورشيد_علي_عمر3456[[#This Row],[التأمينات]]-خورشيد_علي_عمر3456[[#This Row],[الغرامة]]-خورشيد_علي_عمر3456[[#This Row],[سلفة مقبوضة]]-خورشيد_علي_عمر3456[[#This Row],[دفعة عن القرض]]),\"\")","v":2045000},"2022-01-01","2025-01-01"]
[3,null,null,null,null,null,null,null,null,null,null,null,null,{"$f":"IFERROR(SUM(خورشيد_علي_عمر3456[[#This Row],[الراتب الأساسي]]/خورشيد_علي_عمر3456[[#This Row],[أيام الشهر]]*خورشيد_علي_عمر3456[[#This Row],[عدد أيام العمل]]+خورشيد_علي_عمر3456[[#This Row],[الزيادة]]+خورشيد_علي_عمر3456[[#This Row],[المكافأة]]-خورشيد_علي_عمر3456[[#This Row],[التأمينات]]-خورشيد_علي_عمر3456[[#This Row],[الغرامة]]),\"\")","v":""},null,null,null,{"$f":"IFERROR(SUM(خورشيد_علي_عمر3456[[#This Row],[الراتب المستحق]]-خورشيد_علي_عمر3456[[#This Row],[سلفة مقبوضة]]-خورشيد_علي_عمر3456[[#This Row],[دفعة عن القرض]]),\"\")","v":""},null,null,null,null,null,null,{"$f":"IFERROR(SUM(خورشيد_علي_عمر3456[[#This Row],[الراتب الأساسي]]/خورشيد_علي_عمر3456[[#This Row],[أيام الشهر]]*خورشيد_علي_عمر3456[[#This Row],[عدد أيام العمل]]+خورشيد_علي_عمر3456[[#This Row],[الزيادة]]+خورشيد_علي_عمر3456[[#This Row],[المكافأة]]+خورشيد_علي_عمر3456[[#This Row],[نجم الشهر]]+خورشيد_علي_عمر3456[[#This Row],[كارت اتصال]]+خورشيد_علي_عمر3456[[#This Row],[تاركت شهري]]+خورشيد_علي_عمر3456[[#This Row],[عمل إضافي]]+خورشيد_علي_عمر3456[[#This Row],[وزن مخزن]]),\"\")","v":""},{"$f":"IFERROR(SUM(خورشيد_علي_عمر3456[[#This Row],[كامل المستحق بدون نقوصات]]-خورشيد_علي_عمر3456[[#This Row],[التأمينات]]-خورشيد_علي_عمر3456[[#This Row],[الغرامة]]-خورشيد_علي_عمر3456[[#This Row],[سلفة مقبوضة]]-خورشيد_علي_عمر3456[[#This Row],[دفعة عن القرض]]),\"\")","v":""}]
[4,null,null,null,null,null,null,null,null,null,null,null,null,{"$f":"IFERROR(SUM(خورشيد_علي_عمر3456[[#This Row],[الراتب الأساسي]]/خورشيد_علي_عمر3456[[#This Row],[أيام الشهر]]*خورشيد_علي_عمر3456[[#This Row],[عدد أيام العمل]]+خورشيد_علي_عمر3456[[#This Row],[الزيادة]]+خورشيد_علي_عمر3456[[#This Row],[المكافأة]]-خورشيد_علي_عمر3456[[#This Row],[التأمينات]]-خورشيد_علي_عمر3456[[#This Row],[الغرامة]]),\"\")","v":""},null,null,null,{"$f":"IFERROR(SUM(خورشيد_علي_عمر3456[[#This Row],[الراتب المستحق]]-خورشيد_علي_عمر3456[[#This Row],[سلفة مقبوضة]]-خورشيد_علي_عمر3456[[#This Row],[دفعة عن القرض]]),\"\")","v":""},null,null,null,null,null,null,{"$f":"IFERROR(SUM(خورشيد_علي_عمر3456[[#This Row],[الراتب الأساسي]]/خورشيد_علي_عمر3456[[#This Row],[أيام الشهر]]*خورشيد_علي_عمر3456[[#This Row],[عدد أيام العمل]]+خورشيد_علي_عمر3456[[#This Row],[الزيادة]]+خورشيد_علي_عمر3456[[#This Row],[المكافأة]]+خورشيد_علي_عمر3456[[#This Row],[نجم الشهر]]+خورشيد_علي_عمر3456[[#This Row],[كارت اتصال]]+خورشيد_علي_عمر3456[[#This Row],[تاركت شهري]]+خورشيد_علي_عمر3456[[#This Row],[عمل إضافي]]+خورشيد_علي_عمر3456[[#This Row],[وزن مخزن]]),\"\")","v":""},{"$f":"IFERROR(SUM(خورشيد_علي_عمر3456[[#This Row],[كامل المستحق بدون نقوصات]]-خورشيد_علي_عمر3456[[#This Row],[التأمينات]]-خورشيد_علي_عمر3456[[#This Row],[الغرامة]]-خورشيد_علي_عمر3456[[#This Row],[سلفة مقبوضة]]-خورشيد_علي_عمر3456[[#This Row],[دفعة عن القرض]]),\"\")","v":""}]
[5,null,null,null,null,null,null,null,null,null,null,null,null,{"$f":"IFERROR(SUM(خورشيد_علي_عمر3456[[#This Row],[الراتب الأساسي]]/خورشيد_علي_عمر3456[[#This Row],[أيام الشهر]]*خورشيد_علي_عمر3456[[#This Row],[عدد أيام العمل]]+خورشيد_علي_عمر3456[[#This Row],[الزيادة]]+خورشيد_علي_عمر3456[[#This Row],[المكافأة]]-خورشيد_علي_عمر3456[[#This Row],[التأمينات]]-خورشيد_علي_عمر3456[[#This Row],[الغرامة]]),\"\")","v":""},null,null,null,{"$f":"IFERROR(SUM(خورشيد_علي_عمر3456[[#This Row],[الراتب المستحق]]-خورشيد_علي_عمر3456[[#This Row],[سلفة مقبوضة]]-خورشيد_علي_عمر3456[[#This Row],[دفعة عن القرض]]),\"\")","v":""},null,null,null,null,null,null,{"$f":"IFERROR(SUM(خورشيد_علي_عمر3456[[#This Row],[الراتب الأساسي]]/خورشيد_علي_عمر3456[[#This Row],[أيام الشهر]]*خورشيد_علي_عمر3456[[#This Row],[عدد أيام العمل]]+خورشيد_علي_عمر3456[[#This Row],[الزيادة]]+خورشيد_علي_عمر3456[[#This Row],[المكافأة]]+خورشيد_علي_عمر3456[[#This Row],[نجم الشهر]]+خورشيد_علي_عمر3456[[#This Row],[كارت اتصال]]+خورشيد_علي_عمر3456[[#This Row],[تاركت شهري]]+خورشيد_علي_عمر3456[[#This Row],[عمل إضافي]]+خورشيد_علي_عمر3456[[#This Row],[وزن مخزن]]),\"\")","v":""},{"$f":"IFERROR(SUM(خورشيد_علي_عمر3456[[#This Row],[كامل المستحق بدون نقوصات]]-خورشيد_علي_عمر3456[[#This Row],[التأمينات]]-خورشيد_علي_عمر3456[[#This Row],[الغرامة]]-خورشيد_علي_عمر3456[[#This Row],[سلفة مقبوضة]]-خورشيد_علي_عمر3456[[#This Row],[دفعة عن القرض]]),\"\")","v":""}]
[6,null,null,null,null,null,null,null,null,null,null,null,null,{"$f":"IFERROR(SUM(خورشيد_علي_عمر3456[[#This Row],[الراتب الأساسي]]/خورشيد_علي_عمر3456[[#This Row],[أيام الشهر]]*خورشيد_علي_عمر3456[[#This Row],[عدد أيام العمل]]+خورشيد_علي_عمر3456[[#This Row],[الزيادة]]+خورشيد_علي_عمر3456[[#This Row],[المكافأة]]-خورشيد_علي_عمر3456[[#This Row],[التأمينات]]-خورشيد_علي_عمر3456[[#This Row],[الغرامة]]),\"\")","v":""},null,null,null,{"$f":"IFERROR(SUM(خورشيد_علي_عمر3456[[#This Row],[الراتب المستحق]]-خورشيد_علي_عمر3456[[#This Row],[سلفة مقبوضة]]-خورشيد_علي_عمر3456[[#This Row],[دفعة عن القرض]]),\"\")","v":""},null,null,null,null,null,null,{"$f":"IFERROR(SUM(خورشيد_علي_عمر3456[[#This Row],[الراتب الأساسي]]/خورشيد_علي_عمر3456[[#This Row],[أيام الشهر]]*خورشيد_علي_عمر3456[[#This Row],[عدد أيام العمل]]+خورشيد_علي_عمر3456[[#This Row],[الزيادة]]+خورشيد_علي_عمر3456[[#This Row],[المكافأة]]+خورشيد_علي_عمر3456[[#This Row],[نجم الشهر]]+خورشيد_علي_عمر3456[[#This Row],[كارت اتصال]]+خورشيد_علي_عمر3456[[#This Row],[تاركت شهري]]+خورشيد_علي_عمر3456[[#This Row],[عمل إضافي]]+خورشيد_علي_عمر3456[[#This Row],[وزن مخزن]]),\"\")","v":""},{"$f":"IFERROR(SUM(خورشيد_علي_عمر3456[[#This Row],[كامل المستحق بدون نقوصات]]-خورشيد_علي_عمر3456[[#This Row],[التأمينات]]-خورشيد_علي_عمر3456[[#This Row],[الغرامة]]-خورشيد_علي_عمر3456[[#This Row],[سلفة مقبوضة]]-خورشيد_علي_عمر3456[[#This Row],[دفعة عن القرض]]),\"\")","v":""}]
[7,null,null,null,null,null,null,null,null,null,null,null,null,{"$f":"IFERROR(SUM(خورشيد_علي_عمر3456[[#This Row],[الراتب الأساسي]]/خورشيد_علي_عمر3456[[#This Row],[أيام الشهر]]*خورشيد_علي_عمر3456[[#This Row],[عدد أيام العمل]]+خورشيد_علي_عمر3456[[#This Row],[الزيادة]]+خورشيد_علي_عمر3456[[#This Row],[المكافأة]]-خورشيد_علي_عمر3456[[#This Row],[التأمينات]]-خورشيد_علي_عمر3456[[#This Row],[الغرامة]]),\"\")","v":""},null,null,null,{"$f":"IFERROR(SUM(خورشيد_علي_عمر3456[[#This Row],[الراتب المستحق]]-خورشيد_علي_عمر3456[[#This Row],[سلفة مقبوضة]]-خورشيد_علي_عمر3456[[#This Row],[دفعة عن القرض]]),\"\")","v":""},null,null,null,null,null,null,{"$f":"IFERROR(SUM(خورشيد_علي_عمر3456[[#This Row],[الراتب الأساسي]]/خورشيد_علي_عمر3456[[#This Row],[أيام الشهر]]*خورشيد_علي_عمر3456[[#This Row],[عدد أيام العمل]]+خورشيد_علي_عمر3456[[#This Row],[الزيادة]]+خورشيد_علي_عمر3456[[#This Row],[المكافأة]]+خورشيد_علي_عمر3456[[#This Row],[نجم الشهر]]+خورشيد_علي_عمر3456[[#This Row],[كارت اتصال]]+خورشيد_علي_عمر3456[[#This Row],[تاركت شهري]]+خورشيد_علي_عمر3456[[#This Row],[عمل إضافي]]+خورشيد_علي_عمر3456[[#This Row],[وزن مخزن]]),\"\")","v":""},{"$f":"IFERROR(SUM(خورشيد_علي_عمر3456[[#This Row],[كامل المستحق بدون نقوصات]]-خورشيد_علي_عمر3456[[#This Row],[التأمينات]]-خورشيد_علي_عمر3456[[#This Row],[الغرامة]]-خورشيد_علي_عمر3456[[#This Row],[سلفة مقبوضة]]-خورشيد_علي_عمر3456[[#This Row],[دفعة عن القرض]]),\"\")","v":""}]
[8,null,null,null,null,null,null,null,null,null,null,null,null,{"$f":"IFERROR(SUM(خورشيد_علي_عمر3456[[#This Row],[الراتب الأساسي]]/خورشيد_علي_عمر3456[[#This Row],[أيام الشهر]]*خورشيد_علي_عمر3456[[#This Row],[عدد أيام العمل]]+خورشيد_علي_عمر3456[[#This Row],[الزيادة]]+خورشيد_علي_عمر3456[[#This Row],[المكافأة]]-خورشيد_علي_عمر3456[[#This Row],[التأمينات]]-خورشيد_علي_عمر3456[[#This Row],[الغرامة]]),\"\")","v":""},null,null,null,{"$f":"IFERROR(SUM(خورشيد_علي_عمر3456[[#This Row],[الراتب المستحق]]-خورشيد_علي_عمر3456[[#This Row],[سلفة مقبوضة]]-خورشيد_علي_عمر3456[[#This Row],[دفعة عن القرض]]),\"\")","v":""},null,null,null,null,null,null,{"$f":"IFERROR(SUM(خورشيد_علي_عمر3456[[#This Row],[الراتب الأساسي]]/خورشيد_علي_عمر3456[[#This Row],[أيام الشهر]]*خورشيد_علي_عمر3456[[#This Row],[عدد أيام العمل]]+خورشيد_علي_عمر3456[[#This Row],[الزيادة]]+خورشيد_علي_عمر3456[[#This Row],[المكافأة]]+خورشيد_علي_عمر3456[[#This Row],[نجم الشهر]]+خورشيد_علي_عمر3456[[#This Row],[كارت اتصال]]+خورشيد_علي_عمر3456[[#This Row],[تاركت شهري]]+خورشيد_علي_عمر3456[[#This Row],[عمل إضافي]]+خورشيد_علي_عمر3456[[#This Row],[وزن مخزن]]),\"\")","v":""},{"$f":"IFERROR(SUM(خورشيد_علي_عمر3456[[#This Row],[كامل المستحق بدون نقوصات]]-خورشيد_علي_عمر3456[[#This Row],[التأمينات]]-خورشيد_علي_عمر3456[[#This Row],[الغرامة]]-خورشيد_علي_عمر3456[[#This Row],[سلفة مقبوضة]]-خورشيد_علي_عمر3456[[#This Row],[دفعة عن القرض]]),\"\")","v":""}]
[9,null,null,null,null,null,null,null,null,null,null,null,null,{"$f":"IFERROR(SUM(خورشيد_علي_عمر3456[[#This Row],[الراتب الأساسي]]/خورشيد_علي_عمر3456[[#This Row],[أيام الشهر]]*خورشيد_علي_عمر3456[[#This Row],[عدد أيام العمل]]+خورشيد_علي_عمر3456[[#This Row],[الزيادة]]+خورشيد_علي_عمر3456[[#This Row],[المكافأة]]-خورشيد_علي_عمر3456[[#This Row],[التأمينات]]-خورشيد_علي_عمر3456[[#This Row],[الغرامة]]),\"\")","v":""},null,null,null,{"$f":"IFERROR(SUM(خورشيد_علي_عمر3456[[#This Row],[الراتب المستحق]]-خورشيد_علي_عمر3456[[#This Row],[سلفة مقبوضة]]-خورشيد_علي_عمر3456[[#This Row],[دفعة عن القرض]]),\"\")","v":""},null,null,null,null,null,null,{"$f":"IFERROR(SUM(خورشيد_علي_عمر3456[[#This Row],[الراتب الأساسي]]/خورشيد_علي_عمر3456[[#This Row],[أيام الشهر]]*خورشيد_علي_عمر3456[[#This Row],[عدد أيام العمل]]+خورشيد_علي_عمر3456[[#This Row],[الزيادة]]+خورشيد_علي_عمر3456[[#This Row],[المكافأة]]+خورشيد_علي_عمر3456[[#This Row],[نجم الشهر]]+خورشيد_علي_عمر3456[[#This Row],[كارت اتصال]]+خورشيد_علي_عمر3456[[#This Row],[تاركت شهري]]+خورشيد_علي_عمر3456[[#This Row],[عمل إضافي]]+خورشيد_علي_عمر3456[[#This Row],[وزن مخزن]]),\"\")","v":""},{"$f":"IFERROR(SUM(خورشيد_علي_عمر3456[[#This Row],[كامل المستحق بدون نقوصات]]-خورشيد_علي_عمر3456[[#This Row],[التأمينات]]-خورشيد_علي_عمر3456[[#This Row],[الغرامة]]-خورشيد_علي_عمر3456[[#This Row],[سلفة مقبوضة]]-خورشيد_علي_عمر3456[[#This Row],[دفعة عن القرض]]),\"\")","v":""}]
[10,null,null,null,null,null,null,null,null,null,null,null,null,{"$f":"IFERROR(SUM(خورشيد_علي_عمر3456[[#This Row],[الراتب الأساسي]]/خورشيد_علي_عمر3456[[#This Row],[أيام الشهر]]*خورشيد_علي_عمر3456[[#This Row],[عدد أيام العمل]]+خورشيد_علي_عمر3456[[#This Row],[الزيادة]]+خورشيد_علي_عمر3456[[#This Row],[المكافأة]]-خورشيد_علي_عمر3456[[#This Row],[التأمينات]]-خورشيد_علي_عمر3456[[#This Row],[الغرامة]]),\"\")","v":""},null,null,null,{"$f":"IFERROR(SUM(خورشيد_علي_عمر3456[[#This Row],[الراتب المستحق]]-خورشيد_علي_عمر3456[[#This Row],[سلفة مقبوضة]]-خورشيد_علي_عمر3456[[#This Row],[دفعة عن القرض]]),\"\")","v":""},null,null,null,null,null,null,{"$f":"IFERROR(SUM(خورشيد_علي_عمر3456[[#This Row],[الراتب الأساسي]]/خورشيد_علي_عمر3456[[#This Row],[أيام الشهر]]*خورشيد_علي_عمر3456[[#This Row],[عدد أيام العمل]]+خورشيد_علي_عمر3456[[#This Row],[الزيادة]]+خورشيد_علي_عمر3456[[#This Row],[المكافأة]]+خورشيد_علي_عمر3456[[#This Row],[نجم الشهر]]+خورشيد_علي_عمر3456[[#This Row],[كارت اتصال]]+خورشيد_علي_عمر3456[[#This Row],[تاركت شهري]]+خورشيد_علي_عمر3456[[#This Row],[عمل إضافي]]+خورشيد_علي_عمر3456[[#This Row],[وزن مخزن]]),\"\")","v":""},{"$f":"IFERROR(SUM(خورشيد_علي_عمر3456[[#This Row],[كامل المستحق بدون نقوصات]]-خورشيد_علي_عمر3456[[#This Row],[التأمينات]]-خورشيد_علي_عمر3456[[#This Row],[الغرامة]]-خورشيد_علي_عمر3456[[#This Row],[سلفة مقبوضة]]-خورشيد_علي_عمر3456[[#This Row],[دفعة عن القرض]]),\"\")","v":""}]
[11,null,null,null,null,null,null,null,null,null,null,null,null,{"$f":"IFERROR(SUM(خورشيد_علي_عمر3456[[#This Row],[الراتب الأساسي]]/خورشيد_علي_عمر3456[[#This Row],[أيام الشهر]]*خورشيد_علي_عمر3456[[#This Row],[عدد أيام العمل]]+خورشيد_علي_عمر3456[[#This Row],[الزيادة]]+خورشيد_علي_عمر3456[[#This Row],[المكافأة]]-خورشيد_علي_عمر3456[[#This Row],[التأمينات]]-خورشيد_علي_عمر3456[[#This Row],[الغرامة]]),\"\")","v":""},null,null,null,{"$f":"IFERROR(SUM(خورشيد_علي_عمر3456[[#This Row],[الراتب المستحق]]-خورشيد_علي_عمر3456[[#This Row],[سلفة مقبوضة]]-خورشيد_علي_عمر3456[[#This Row],[دفعة عن القرض]]),\"\")","v":""},null,null,null,null,null,null,{"$f":"IFERROR(SUM(خورشيد_علي_عمر3456[[#This Row],[الراتب الأساسي]]/خورشيد_علي_عمر3456[[#This Row],[أيام الشهر]]*خورشيد_علي_عمر3456[[#This Row],[عدد أيام العمل]]+خورشيد_علي_عمر3456[[#This Row],[الزيادة]]+خورشيد_علي_عمر3456[[#This Row],[المكافأة]]+خورشيد_علي_عمر3456[[#This Row],[نجم الشهر]]+خورشيد_علي_عمر3456[[#This Row],[كارت اتصال]]+خورشيد_علي_عمر3456[[#This Row],[تاركت شهري]]+خورشيد_علي_عمر3456[[#This Row],[عمل إضافي]]+خورشيد_علي_عمر3456[[#This Row],[وزن مخزن]]),\"\")","v":""},{"$f":"IFERROR(SUM(خورشيد_علي_عمر3456[[#This Row],[كامل المستحق بدون نقوصات]]-خورشيد_علي_عمر3456[[#This Row],[التأمينات]]-خورشيد_علي_عمر3456[[#This Row],[الغرامة]]-خورشيد_علي_عمر3456[[#This Row],[سلفة مقبوضة]]-خورشيد_علي_عمر3456[[#This Row],[دفعة عن القرض]]),\"\")","v":""}]
[12,null,null,null,null,null,null,null,null,null,null,null,null,{"$f":"IFERROR(SUM(خورشيد_علي_عمر3456[[#This Row],[الراتب الأساسي]]/خورشيد_علي_عمر3456[[#This Row],[أيام الشهر]]*خورشيد_علي_عمر3456[[#This Row],[عدد أيام العمل]]+خورشيد_علي_عمر3456[[#This Row],[الزيادة]]+خورشيد_علي_عمر3456[[#This Row],[المكافأة]]-خورشيد_علي_عمر3456[[#This Row],[التأمينات]]-خورشيد_علي_عمر3456[[#This Row],[الغرامة]]),\"\")","v":""},null,null,null,{"$f":"IFERROR(SUM(خورشيد_علي_عمر3456[[#This Row],[الراتب المستحق]]-خورشيد_علي_عمر3456[[#This Row],[سلفة مقبوضة]]-خورشيد_علي_عمر3456[[#This Row],[دفعة عن القرض]]),\"\")","v":""},null,null,null,null,null,null,{"$f":"IFERROR(SUM(خورشيد_علي_عمر3456[[#This Row],[الراتب الأساسي]]/خورشيد_علي_عمر3456[[#This Row],[أيام الشهر]]*خورشيد_علي_عمر3456[[#This Row],[عدد أيام العمل]]+خورشيد_علي_عمر3456[[#This Row],[الزيادة]]+خورشيد_علي_عمر3456[[#This Row],[المكافأة]]+خورشيد_علي_عمر3456[[#This Row],[نجم الشهر]]+خورشيد_علي_عمر3456[[#This Row],[كارت اتصال]]+خورشيد_علي_عمر3456[[#This Row],[تاركت شهري]]+خورشيد_علي_عمر3456[[#This Row],[عمل إضافي]]+خورشيد_علي_عمر3456[[#This Row],[وزن مخزن]]),\"\")","v":""},{"$f":"IFERROR(SUM(خورشيد_علي_عمر3456[[#This Row],[كامل المستحق بدون نقوصات]]-خورشيد_علي_عمر3456[[#This Row],[التأمينات]]-خورشيد_علي_عمر3456[[#This Row],[الغرامة]]-خورشيد_علي_عمر3456[[#This Row],[سلفة مقبوضة]]-خورشيد_علي_عمر3456[[#This Row],[دفعة عن القرض]]),\"\")","v":""}]
[13,null,null,null,null,null,null,null,null,null,null,null,null,{"$f":"IFERROR(SUM(خورشيد_علي_عمر3456[[#This Row],[الراتب الأساسي]]/خورشيد_علي_عمر3456[[#This Row],[أيام الشهر]]*خورشيد_علي_عمر3456[[#This Row],[عدد أيام العمل]]+خورشيد_علي_عمر3456[[#This Row],[الزيادة]]+خورشيد_علي_عمر3456[[#This Row],[المكافأة]]-خورشيد_علي_عمر3456[[#This Row],[التأمينات]]-خورشيد_علي_عمر3456[[#This Row],[الغرامة]]),\"\")","v":""},null,null,null,{"$f":"IFERROR(SUM(خورشيد_علي_عمر3456[[#This Row],[الراتب المستحق]]-خورشيد_علي_عمر3456[[#This Row],[سلفة مقبوضة]]-خورشيد_علي_عمر3456[[#This Row],[دفعة عن القرض]]),\"\")","v":""},null,null,null,null,null,null,{"$f":"IFERROR(SUM(خورشيد_علي_عمر3456[[#This Row],[الراتب الأساسي]]/خورشيد_علي_عمر3456[[#This Row],[أيام الشهر]]*خورشيد_علي_عمر3456[[#This Row],[عدد أيام العمل]]+خورشيد_علي_عمر3456[[#This Row],[الزيادة]]+خورشيد_علي_عمر3456[[#This Row],[المكافأة]]+خورشيد_علي_عمر3456[[#This Row],[نجم الشهر]]+خورشيد_علي_عمر3456[[#This Row],[كارت اتصال]]+خورشيد_علي_عمر3456[[#This Row],[تاركت شهري]]+خورشيد_علي_عمر3456[[#This Row],[عمل إضافي]]+خورشيد_علي_عمر3456[[#This Row],[وزن مخزن]]),\"\")","v":""},{"$f":"IFERROR(SUM(خورشيد_علي_عمر3456[[#This Row],[كامل المستحق بدون نقوصات]]-خورشيد_علي_عمر3456[[#This Row],[التأمينات]]-خورشيد_علي_عمر3456[[#This Row],[الغرامة]]-خورشيد_علي_عمر3456[[#This Row],[سلفة مقبوضة]]-خورشيد_علي_عمر3456[[#This Row],[دفعة عن القرض]]),\"\")","v":""}]
[1000,null,null,null,null,null,null,null,null,null,null,null,null,{"$f":"IFERROR(SUM(خورشيد_علي_عمر3456[[#This Row],[الراتب الأساسي]]/خورشيد_علي_عمر3456[[#This Row],[أيام الشهر]]*خورشيد_علي_عمر3456[[#This Row],[عدد أيام العمل]]+خورشيد_علي_عمر3456[[#This Row],[الزيادة]]+خورشيد_علي_عمر3456[[#This Row],[المكافأة]]-خورشيد_علي_عمر3456[[#This Row],[التأمينات]]-خورشيد_علي_عمر3456[[#This Row],[الغرامة]]),\"\")","v":""},null,null,null,{"$f":"IFERROR(SUM(خورشيد_علي_عمر3456[[#This Row],[الراتب المستحق]]-خورشيد_علي_عمر3456[[#This Row],[سلفة مقبوضة]]-خورشيد_علي_عمر3456[[#This Row],[دفعة عن القرض]]),\"\")","v":""},null,null,null,null,null,null,{"$f":"IFERROR(SUM(خورشيد_علي_عمر3456[[#This Row],[الراتب الأساسي]]/خورشيد_علي_عمر3456[[#This Row],[أيام الشهر]]*خورشيد_علي_عمر3456[[#This Row],[عدد أيام العمل]]+خورشيد_علي_عمر3456[[#This Row],[الزيادة]]+خورشيد_علي_عمر3456[[#This Row],[المكافأة]]+خورشيد_علي_عمر3456[[#This Row],[نجم الشهر]]+خورشيد_علي_عمر3456[[#This Row],[كارت اتصال]]+خورشيد_علي_عمر3456[[#This Row],[تاركت شهري]]+خورشيد_علي_عمر3456[[#This Row],[عمل إضافي]]+خورشيد_علي_عمر3456[[#This Row],[وزن مخزن]]),\"\")","v":""},{"$f":"IFERROR(SUM(خورشيد_علي_عمر3456[[#This Row],[كامل المستحق بدون نقوصات]]-خورشيد_علي_عمر3456[[#This Row],[التأمينات]]-خورشيد_علي_عمر3456[[#This Row],[الغرامة]]-خورشيد_علي_عمر3456[[#This Row],[سلفة مقبوضة]]-خورشيد_علي_عمر3456[[#This Row],[دفعة عن القرض]]),\"\")","v":""}]
[null,null,null,null,{"$f":"SUBTOTAL(109,خورشيد_علي_عمر3456[الراتب الأساسي])","v":3500000},null,null,{"$f":"SUBTOTAL(109,H5:H18)","v":125000},{"$f":"SUBTOTAL(109,I5:I18)","v":60000},null,{"$f":"SUBTOTAL(109,K5:K18)","v":35000},{"$f":"SUBTOTAL(109,L5:L18)","v":30000},null,{"$f":"SUBTOTAL(109,N5:N18)","v":3570000},75000,150000,800000,3345000,25000,0,0,0,{"$f":"SUBTOTAL(109,خورشيد_علي_عمر3456[عمل إضافي])","v":0},{"$f":"SUBTOTAL(109,خورشيد_علي_عمر3456[وزن مخزن])","v":0},null,{"$f":"SUBTOTAL(109,خورشيد_علي_عمر3456[كامل المستلم الفعلي])","v":3370000}]